Workbook

Sheet Common
D2: Real Discount Rate
D3: After-Tax WACC | E3: =G24 -> 0.07293815962
D4: AFUDC Debt | E4: =F22 -> 0.029430825
D5: AFUDC Equity | E5: =F23 -> 0.050841375
D6: Rate for Cap Interest | E6: =D22 -> 0.0615
D7: State/Federal Income Tax Rate | E7: 0.2491958816
D8: Property Tax
D9: Insurance
D10: Infl Rate | E10: 0.025
D11: State Income Tax Rate | E11: 0.04961504
D12: Federal Income Tax Rate | E12: 0.21
D13: Base Year for Contruction Cost Estimates | E13: 2024
B18: WACC Components:
D19: Rate | E19: Portion % | F19: Nominal WACC | G19: After-Tax WACC
B22: Debt | D22: 0.0615 | E22: =E24-E23 -> 0.47855 | F22: =D22*E22 -> 0.029430825 | G22: =F22*(1-Tax_Rate) -> 0.02209678462
B23: Common Equity | D23: 0.0975 | E23: 0.52145 | F23: =D23*E23 -> 0.050841375 | G23: =F23 -> 0.050841375
E24: 1 | F24: =SUM(F22:F23) -> 0.0802722 | G24: =SUM(G22:G23) -> 0.07293815962
B33: Tax Depreciation Rates -- Full year convention
B36: Tax Life | C36: 1 | D36: 2 | E36: 3 | F36: 4 | G36: 5 | H36: 6 | I36: 7 | J36: 8 | K36: 9 | L36: 10 | M36: 11 | N36: 12 | O36: 13 | P36: 14 | Q36: 15 | R36: 16 | S36: 17 | T36: 18 | U36: 19 | V36: 20 | W36: 21 | X36: 22 | Y36: 23 | Z36: 24 | AA36: 25 | AB36: 26 | AC36: 27 | AD36: 28 | AE36: 29 | AF36: 30 | AG36: 31 | AH36: 32 | AI36: 33 | AJ36: 34 | AK36: 35 | AL36: 36 | AM36: 37 | AN36: 38 | AO36: 39 | AP36: 40 | AQ36: 41 | AR36: 42 | AS36: 43 | AT36: 44 | AU36: 45 | AV36: 46 | AW36: 47 | AX36: 48 | AY36: 49 | AZ36: 50 | BA36: 51 | BB36: 52 | BC36: 53 | BD36: 54 | BE36: 55 | BF36: 56 | BG36: 57 | BH36: 58 | BI36: 59 | BJ36: 60 | BK36: 61 | BL36: 62 | BM36: 63 | BN36: 64 | BO36: 65 | BP36: 66 | BQ36: 67 | BR36: 68 | BS36: 69
B37: 5 | C37: 0.2 | D37: 0.32 | E37: 0.192 | F37: 0.1152 | G37: 0.1152 | H37: 0.0576 | I37: 0 | J37: 0 | K37: 0 | L37: 0 | M37: 0 | N37: 0 | O37: 0 | P37: 0 | Q37: 0 | R37: 0 | S37: 0 | T37: 0 | U37: 0 | V37: 0 | W37: 0 | X37: 0 | Y37: 0 | Z37: 0 | AA37: 0 | AB37: 0 | AC37: 0 | AD37: 0 | AE37: 0 | AF37: 0 | AG37: 0 | AH37: 0 | AI37: 0 | AJ37: 0 | AK37: 0 | AL37: 0 | AM37: 0 | AN37: 0 | AO37: 0 | AP37: 0 | AQ37: 0 | AR37: 0 | AS37: 0 | AT37: 0 | AU37: 0 | AV37: 0 | AW37: 0 | AX37: 0 | AY37: 0 | AZ37: 0 | BA37: 0 | BB37: 0 | BC37: 0 | BD37: 0 | BE37: 0 | BF37: 0 | BG37: 0 | BH37: 0 | BI37: 0 | BJ37: 0 | BK37: 0 | BL37: 0 | BM37: 0 | BN37: 0 | BO37: 0 | BP37: 0 | BQ37: 0 | BR37: 0 | BS37: 0
B38: 7 | C38: 0.26535 | D38: 0.2099 | E38: 0.1499 | F38: 0.1071 | G38: 0.08925 | H38: 0.08925 | I38: 0.06695 | J38: 0.0223 | K38: 0 | L38: 0 | M38: 0 | N38: 0 | O38: 0 | P38: 0 | Q38: 0 | R38: 0 | S38: 0 | T38: 0 | U38: 0 | V38: 0 | W38: 0 | X38: 0 | Y38: 0 | Z38: 0 | AA38: 0 | AB38: 0 | AC38: 0 | AD38: 0 | AE38: 0 | AF38: 0 | AG38: 0 | AH38: 0 | AI38: 0 | AJ38: 0 | AK38: 0 | AL38: 0 | AM38: 0 | AN38: 0 | AO38: 0 | AP38: 0 | AQ38: 0 | AR38: 0 | AS38: 0 | AT38: 0 | AU38: 0 | AV38: 0 | AW38: 0 | AX38: 0 | AY38: 0 | AZ38: 0 | BA38: 0 | BB38: 0 | BC38: 0 | BD38: 0 | BE38: 0 | BF38: 0 | BG38: 0 | BH38: 0 | BI38: 0 | BJ38: 0 | BK38: 0 | BL38: 0 | BM38: 0 | BN38: 0 | BO38: 0 | BP38: 0 | BQ38: 0 | BR38: 0 | BS38: 0
B39: 15 | C39: 0.0975 | D39: 0.0905 | E39: 0.0815 | F39: 0.073 | G39: 0.0655 | H39: 0.0605 | I39: 0.059 | J39: 0.059 | K39: 0.059 | L39: 0.059 | M39: 0.059 | N39: 0.059 | O39: 0.059 | P39: 0.059 | Q39: 0.0595 | R39: 0 | S39: 0 | T39: 0 | U39: 0 | V39: 0 | W39: 0 | X39: 0 | Y39: 0 | Z39: 0 | AA39: 0 | AB39: 0 | AC39: 0 | AD39: 0 | AE39: 0 | AF39: 0 | AG39: 0 | AH39: 0 | AI39: 0 | AJ39: 0 | AK39: 0 | AL39: 0 | AM39: 0 | AN39: 0 | AO39: 0 | AP39: 0 | AQ39: 0 | AR39: 0 | AS39: 0 | AT39: 0 | AU39: 0 | AV39: 0 | AW39: 0 | AX39: 0 | AY39: 0 | AZ39: 0 | BA39: 0 | BB39: 0 | BC39: 0 | BD39: 0 | BE39: 0 | BF39: 0 | BG39: 0 | BH39: 0 | BI39: 0 | BJ39: 0 | BK39: 0 | BL39: 0 | BM39: 0 | BN39: 0 | BO39: 0 | BP39: 0 | BQ39: 0 | BR39: 0 | BS39: 0
B40: 20 | C40: 0.074 | D40: 0.0695 | E40: 0.0645 | F40: 0.0595 | G40: 0.055 | H40: 0.051 | I40: 0.047 | J40: 0.045 | K40: 0.045 | L40: 0.045 | M40: 0.045 | N40: 0.045 | O40: 0.045 | P40: 0.045 | Q40: 0.045 | R40: 0.045 | S40: 0.045 | T40: 0.045 | U40: 0.045 | V40: 0.0395 | W40: 0 | X40: 0 | Y40: 0 | Z40: 0 | AA40: 0 | AB40: 0 | AC40: 0 | AD40: 0 | AE40: 0 | AF40: 0 | AG40: 0 | AH40: 0 | AI40: 0 | AJ40: 0 | AK40: 0 | AL40: 0 | AM40: 0 | AN40: 0 | AO40: 0 | AP40: 0 | AQ40: 0 | AR40: 0 | AS40: 0 | AT40: 0 | AU40: 0 | AV40: 0 | AW40: 0 | AX40: 0 | AY40: 0 | AZ40: 0 | BA40: 0 | BB40: 0 | BC40: 0 | BD40: 0 | BE40: 0 | BF40: 0 | BG40: 0 | BH40: 0 | BI40: 0 | BJ40: 0 | BK40: 0 | BL40: 0 | BM40: 0 | BN40: 0 | BO40: 0 | BP40: 0 | BQ40: 0 | BR40: 0 | BS40: 0
A41: 60% 7yr SL; 40% 20yr MACRS | B41: 7_20 | C41: 0.1153142857 | D41: 0.1135142857 | E41: 0.1115142857 | F41: 0.1095142857 | G41: 0.1077142857 | H41: 0.1061142857 | I41: 0.1045142857 | J41: 0.018 | K41: 0.018 | L41: 0.018 | M41: 0.018 | N41: 0.018 | O41: 0.018 | P41: 0.018 | Q41: 0.018 | R41: 0.018 | S41: 0.018 | T41: 0.018 | U41: 0.018 | V41: 0.0158 | W41: 0 | X41: 0 | Y41: 0 | Z41: 0 | AA41: 0 | AB41: 0 | AC41: 0 | AD41: 0 | AE41: 0 | AF41: 0 | AG41: 0 | AH41: 0 | AI41: 0 | AJ41: 0 | AK41: 0 | AL41: 0 | AM41: 0 | AN41: 0 | AO41: 0 | AP41: 0 | AQ41: 0 | AR41: 0 | AS41: 0 | AT41: 0 | AU41: 0 | AV41: 0 | AW41: 0 | AX41: 0 | AY41: 0 | AZ41: 0 | BA41: 0 | BB41: 0 | BC41: 0 | BD41: 0 | BE41: 0 | BF41: 0 | BG41: 0 | BH41: 0 | BI41: 0 | BJ41: 0 | BK41: 0 | BL41: 0 | BM41: 0 | BN41: 0 | BO41: 0 | BP41: 0 | BQ41: 0 | BR41: 0 | BS41: 0
A42: 60% 5yr SL; 40% 20yr MACRS | B42: 5_20 | C42: 0.1496 | D42: 0.1478 | E42: 0.1458 | F42: 0.1438 | G42: 0.142 | H42: 0.0204 | I42: 0.0188 | J42: 0.018 | K42: 0.018 | L42: 0.018 | M42: 0.018 | N42: 0.018 | O42: 0.018 | P42: 0.018 | Q42: 0.018 | R42: 0.018 | S42: 0.018 | T42: 0.018 | U42: 0.018 | V42: 0.0158 | W42: 0 | X42: 0 | Y42: 0 | Z42: 0 | AA42: 0 | AB42: 0 | AC42: 0 | AD42: 0 | AE42: 0 | AF42: 0 | AG42: 0 | AH42: 0 | AI42: 0 | AJ42: 0 | AK42: 0 | AL42: 0 | AM42: 0 | AN42: 0 | AO42: 0 | AP42: 0 | AQ42: 0 | AR42: 0 | AS42: 0 | AT42: 0 | AU42: 0 | AV42: 0 | AW42: 0 | AX42: 0 | AY42: 0 | AZ42: 0 | BA42: 0 | BB42: 0 | BC42: 0 | BD42: 0 | BE42: 0 | BF42: 0 | BG42: 0 | BH42: 0 | BI42: 0 | BJ42: 0 | BK42: 0 | BL42: 0 | BM42: 0 | BN42: 0 | BO42: 0 | BP42: 0 | BQ42: 0 | BR42: 0 | BS42: 0

Sheet Asset Specific Inputs
I7: Total Case Count = | J7: 2
D10: --- PROJECT SPECIFIC INPUTS ---
I11: Active Case
I12: 2 | J12: 1 | K12: 2 | BT12: =BS12+1 -> 1 | BU12: =BT12+1 -> 2 | BV12: =BU12+1 -> 3 | BW12: =BV12+1 -> 4 | BX12: =BW12+1 -> 5 | BY12: =BX12+1 -> 6 | BZ12: =BY12+1 -> 7 | CA12: =BZ12+1 -> 8 | CB12: =CA12+1 -> 9 | CC12: =CB12+1 -> 10 | CD12: =CC12+1 -> 11 | CE12: =CD12+1 -> 12 | CF12: =CE12+1 -> 13 | CG12: =CF12+1 -> 14 | CH12: =CG12+1 -> 15 | CI12: =CH12+1 -> 16 | CJ12: =CI12+1 -> 17 | CK12: =CJ12+1 -> 18 | CL12: =CK12+1 -> 19 | CM12: =CL12+1 -> 20 | CN12: =CM12+1 -> 21 | CO12: =CN12+1 -> 22 | CP12: =CO12+1 -> 23 | CQ12: =CP12+1 -> 24 | CR12: =CQ12+1 -> 25 | CS12: =CR12+1 -> 26 | CT12: =CS12+1 -> 27 | CU12: =CT12+1 -> 28 | CV12: =CU12+1 -> 29 | CW12: =CV12+1 -> 30 | CX12: =CW12+1 -> 31 | CY12: =CX12+1 -> 32 | CZ12: =CY12+1 -> 33 | DA12: =CZ12+1 -> 34 | DB12: =DA12+1 -> 35 | DC12: =DB12+1 -> 36 | DD12: =DC12+1 -> 37 | DE12: =DD12+1 -> 38 | DF12: =DE12+1 -> 39 | DG12: =DF12+1 -> 40 | DH12: =DG12+1 -> 41
H13: Project Name | I13: =OFFSET($J13,0,I$12-1,1,1) -> Distribution | J13: Transmission | K13: Distribution
A14: Source/Notes | H14: Project Description (key features) | I14: Dist | J14: Trans | K14: Dist
H15: MW Capability of Plant (used Summer rating) | I15: 1 | J15: 1 | K15: 1
H16: Real Inflation Rate % for ST | I16: 0 | J16: 0 | K16: 0
H17: Transition Year for ST to LT (# yrs into the future from base year) | I17: 10 | J17: 10 | K17: 10
H18: Real Infl Rate % for LT (beyond ST period) | I18: 0 | J18: 0 | K18: 0
H19: % of Expenditures for Capitalized Interest | I19: 1 | J19: 1 | K19: 1
H20: Tax Life (Yrs) | I20: =OFFSET($J20,0,I$12-1,1,1) -> 20 | J20: 15 | K20: 20
H21: Plant Life (Yrs) | I21: 51 | J21: 50 | K21: 51
H22: Net Salvage Value (or Site Restoration) | I22: -0.2 | J22: -0.13 | K22: -0.2
H23: Nuclear Decommissioning Cost | I23: 0 | J23: 0 | K23: 0
H24: Federal ITC % | I24: 0 | J24: 0 | K24: 0
H25: Years Lag for Federal ITC realization | I25: 0 | J25: 0 | K25: 0
H26: 1-time state deduct for Fed ITC tax basis reduction? ("yes" or blank) | I26: =OFFSET($J26,0,I$12-1,1,1) -> 0
H27: State ITC % | I27: 0 | J27: 0 | K27: 0
H28: State ITC spread over how many years? | I28: 0 | J28: 0 | K28: 0
H29: Years Lag for start of State ITC (not to exceed spread years minus one) | I29: 0 | J29: 0 | K29: 0
H30: Portion of Federal ITC offsetting basis for Tax Deprec | I30: 0 | J30: 0 | K30: 0
H31: Bonus Depreciation % | I31: 0 | J31: 0 | K31: 0
H32: Portion of CWIP in Ratebase | I32: 0 | J32: 0 | K32: 0
H33: Property Tax Basis Method (DEC/DEP=1, DEI=2, DEK=3, DEC/DEP detailed) | I33: 3 | J33: 3 | K33: 3
A34: 2014 Tax Information Report.xlsx | H34: Property Tax Rate % | I34: 0.01021672052 | J34: 0.01021672052 | K34: 0.01021672052
A35: Standard Assumptions 2015_04_07v5.xlsx | H35: Insurance Rate % (applied to Replacement Cost) | I35: 0.000428 | J35: 0.000428 | K35: 0.000428
I37: Overnight Cost Expenditures (for Base Year) $000
H38: 0 | I38: =OFFSET($J38,0,I$12-1,1,1) -> 0
G39: Construction Year | H39: 1 | I39: 100 | J39: 40 | K39: 100
H40: 2 | I40: 0 | J40: 60 | K40: 0
H41: 3 | I41: 0 | J41: 0 | K41: 0
H42: 4 | I42: 0 | J42: 0 | K42: 0
H43: 5 | I43: 0 | J43: 0 | K43: 0
H44: 6 | I44: 0 | J44: 0 | K44: 0
H45: 7 | I45: 0 | J45: 0 | K45: 0
H46: 8 | I46: 0 | J46: 0 | K46: 0
H47: 9 | I47: 0 | J47: 0 | K47: 0
H48: 10 | I48: 0 | J48: 0 | K48: 0
H49: 11 | I49: 0 | J49: 0 | K49: 0
H50: 12 | I50: 0 | J50: 0 | K50: 0
H51: 13 | I51: 0 | J51: 0 | K51: 0
H52: 14 | I52: 0 | J52: 0 | K52: 0
H53: 15 | I53: 0
H55: CWIP (or remaining CWIP) % to Plant in Service (only for NO AFUDC cases)
H56: 1 | I56: =OFFSET($J56,0,I$12-1,1,1) -> 1 | J56: =IF(AND(J39>0,J40=0),1,0) -> 0 | K56: =IF(AND(K39>0,K40=0),1,0) -> 1
H57: 2 | I57: 0 | J57: =IF(AND(J40>0,J41=0),1,0) -> 1 | K57: 0
H58: 3 | I58: 0 | J58: =IF(AND(J41>0,J42=0),1,0) -> 0 | K58: 0
H59: 4 | I59: 0 | J59: =IF(AND(J42>0,J43=0),1,0) -> 0 | K59: 0
H60: 5 | I60: 0 | J60: =IF(AND(J43>0,J44=0),1,0) -> 0 | K60: 0
H61: 6 | I61: 0 | J61: =IF(AND(J44>0,J45=0),1,0) -> 0 | K61: 0
H62: 7 | I62: 0 | J62: =IF(AND(J45>0,J46=0),1,0) -> 0 | K62: 0
H63: 8 | I63: 0 | J63: =IF(AND(J46>0,J47=0),1,0) -> 0 | K63: 0
H64: 9 | I64: 0 | J64: =IF(AND(J47>0,J48=0),1,0) -> 0 | K64: 0
H65: 10 | I65: 0 | J65: =IF(AND(J48>0,J49=0),1,0) -> 0 | K65: 0
H66: 11 | I66: 0 | J66: =IF(AND(J49>0,J50=0),1,0) -> 0 | K66: 0
H67: 12 | I67: 0 | J67: =IF(AND(J50>0,J51=0),1,0) -> 0 | K67: 0
H68: 13 | I68: 0 | J68: =IF(AND(J51>0,J52=0),1,0) -> 0 | K68: 0
H69: 14 | I69: 0 | J69: =IF(AND(J52>0,J53=0),1,0) -> 0 | K69: 0
H70: 15 | I70: 0 | J70: =IF(AND(J53>0,J54=0),1,0) -> 0 | K70: 0
D75: --- OUTPUTS/Summary Metrics ---
I76: =Active_Case -> 2 | J76: =J12 -> 1 | K76: =J76+1 -> 2
B77: 1 | H77: Project Name | I77: =I13 -> Distribution | J77: Transmission | K77: Distribution
B78: 2 | H78: Project Description (key features) | I78: =I14 -> Dist | J78: Trans | K78: Dist
B79: 3 | H79: REGION (DEC/DEP=1, DEI=2, DEK=3) | I79: =I33 -> 3 | J79: 3 | K79: 3
B80: 4 | H80: Base Year | I80: =base_year -> 2024 | J80: 2024 | K80: 2024
H81: Project MW Rating (1.0 if modeled as total $000) | I81: =I15 -> 1 | J81: 1 | K81: 1
H82: Overnight Cost $/kW (or $000 if modeled as 1.0 MW) | I82: =SUM(I38:I53)/I15 -> 100 | J82: 100 | K82: 100
D83: Inflated Installed Cost for mid-Base Year c/o:
B84: 7 | H84: Inflated Direct $/kW (or $000 if modeled as 1.0 MW) | I84: =IF(SUM($I$39:$I$53)>0,'Analysis_w AFUDC'!O49,I38) -> 98.7804878 | J84: 97.81677573 | K84: 98.7804878
B85: 8 | H85: AFUDC $/kW (or $000 if modeled as 1.0 MW) | I85: =IF(SUM($I$39:$I$53)>0,'Analysis_w AFUDC'!O50,0) -> 3.915717073 | J85: 7.094549218 | K85: 3.915717073
B86: 8 | H86: Inflated Installed Cost $/kW (or $000 if modeled as 1.0 MW) | I86: =IF(SUM($I$39:$I$53)>0,'Analysis_w AFUDC'!O51,I38) -> 102.6962049 | J86: 104.9113249 | K86: 102.6962049
B87: 10 | H87: AFUDC % of Total | I87: =I85/I86 -> 0.03812913124 | J87: 0.06762424573 | K87: 0.03812913124
B88: 11 | H88: Net Salvage Value % | I88: =I22 -> -0.2 | J88: -0.13 | K88: -0.2
B89: 12 | H89: Nuclear Decommissioning % | I89: =I23 -> 0 | J89: 0 | K89: 0
B90: 13 | H90: Project Life (yrs) | I90: =I21 -> 51 | J90: 50 | K90: 51
B91: 14 | H91: Tax Life (yrs) | I91: =I20 -> 20 | J91: 15 | K91: 20
B92: 15 | H92: Bonus Depreciation % | I92: =I31 -> 0 | J92: 0 | K92: 0
B93: 16 | H93: Fed ITC % | I93: =I24 -> 0 | J93: 0 | K93: 0
B94: 17 | H94: State ITC (or credit) % | I94: =I27 -> 0 | J94: 0 | K94: 0
B95: 18 | H95: Lag Years for Fed ITC | I95: =I29 -> 0 | J95: 0 | K95: 0
B96: 19 | H96: Lag Years for State ITC | I96: =I25 -> 0 | J96: 0 | K96: 0
B97: 20
B98: 21 | H98: Real LFCR % (EOY convention) | I98: ='Analysis_w AFUDC'!O54 -> 0.06592762552 | J98: 0.06516553113 | K98: 0.06592762552
B99: 22
B100: 23
H101: Real LT Discount Rate | I101: ='Analysis_w AFUDC'!O57 -> 0.04676893621 | J101: 0.04676893621 | K101: 0.04676893621
H102: LT Technology-specific Infl Rate | I102: ='Analysis_w AFUDC'!M62 -> 0.025 | J102: 0.025 | K102: 0.025
B103: 24
B104: 25
H105: ST + LT Components of Inflated Installed Cost (incl AFUDC) | I105: $/kW | J105: $/kW | K105: $/kW
B106: 27 | G106: 0 | H106: =base_year -> 2024 | I106: ='Analysis_w AFUDC'!M68 -> 102.6962049 | J106: 104.9113249 | K106: 102.6962049
B107: 28 | G107: 1 | H107: =H106+1 -> 2025 | I107: ='Analysis_w AFUDC'!M69 -> 105.26361 | J107: 107.5341081 | K107: 105.26361
B108: 29 | G108: 2 | H108: =H107+1 -> 2026 | I108: ='Analysis_w AFUDC'!M70 -> 107.8952003 | J108: 110.2224608 | K108: 107.8952003
B109: 30 | G109: 3 | H109: 2027 | I109: ='Analysis_w AFUDC'!M71 -> 110.5925803 | J109: 112.9780223 | K109: 110.5925803
B110: 31 | G110: 4 | H110: 2028 | I110: ='Analysis_w AFUDC'!M72 -> 113.3573948 | J110: 115.8024728 | K110: 113.3573948
B111: 32 | G111: 5 | H111: 2029 | I111: ='Analysis_w AFUDC'!M73 -> 116.1913296 | J111: 118.6975347 | K111: 116.1913296
B112: 33 | G112: 6 | H112: 2030 | I112: ='Analysis_w AFUDC'!M74 -> 119.0961129 | J112: 121.664973 | K112: 119.0961129
B113: 34 | G113: 7 | H113: 2031 | I113: ='Analysis_w AFUDC'!M75 -> 122.0735157 | J113: 124.7065974 | K113: 122.0735157
B114: 35 | G114: 8 | H114: 2032 | I114: ='Analysis_w AFUDC'!M76 -> 125.1253536 | J114: 127.8242623 | K114: 125.1253536
B115: 36 | G115: 9 | H115: 2033 | I115: ='Analysis_w AFUDC'!M77 -> 128.2534874 | J115: 131.0198689 | K115: 128.2534874
B116: 37 | G116: 10 | H116: 2034 | I116: ='Analysis_w AFUDC'!M78 -> 131.4598246 | J116: 134.2953656 | K116: 131.4598246
B117: 38 | G117: 11 | H117: 2035 | I117: ='Analysis_w AFUDC'!M79 -> 134.7463202 | J117: 137.6527497 | K117: 134.7463202
B118: 39 | G118: 12 | H118: 2036 | I118: ='Analysis_w AFUDC'!M80 -> 138.1149782 | J118: 141.0940685 | K118: 138.1149782
B119: 40 | G119: 13 | H119: 2037 | I119: ='Analysis_w AFUDC'!M81 -> 141.5678527 | J119: 144.6214202 | K119: 141.5678527
B120: 41 | G120: 14 | H120: 2038 | I120: ='Analysis_w AFUDC'!M82 -> 145.107049 | J120: 148.2369557 | K120: 145.107049
B121: 42 | G121: 15 | H121: 2039 | I121: ='Analysis_w AFUDC'!M83 -> 148.7347252 | J121: 151.9428796 | K121: 148.7347252
B122: 43
B123: 44
B124: 45 | H124: LT Component of Inflated Installed Cost (incl AFUDC) | I124: $/kW | J124: $/kW | K124: $/kW
B125: 46 | G125: 0 | H125: =base_year -> 2024 | I125: ='Analysis_w AFUDC'!N68 -> 102.6962049 | J125: 104.9113249 | K125: 102.6962049
B126: 47 | G126: 1 | H126: =H125+1 -> 2025 | I126: ='Analysis_w AFUDC'!N69 -> 105.26361 | J126: 107.5341081 | K126: 105.26361
B127: 48 | G127: 2 | H127: =H126+1 -> 2026 | I127: ='Analysis_w AFUDC'!N70 -> 107.8952003 | J127: 110.2224608 | K127: 107.8952003
B128: 49 | G128: 3 | H128: 2027 | I128: ='Analysis_w AFUDC'!N71 -> 110.5925803 | J128: 112.9780223 | K128: 110.5925803
B129: 50 | G129: 4 | H129: 2028 | I129: ='Analysis_w AFUDC'!N72 -> 113.3573948 | J129: 115.8024728 | K129: 113.3573948
B130: 51 | G130: 5 | H130: 2029 | I130: ='Analysis_w AFUDC'!N73 -> 116.1913296 | J130: 118.6975347 | K130: 116.1913296
B131: 52 | G131: 6 | H131: 2030 | I131: ='Analysis_w AFUDC'!N74 -> 119.0961129 | J131: 121.664973 | K131: 119.0961129
B132: 53 | G132: 7 | H132: 2031 | I132: ='Analysis_w AFUDC'!N75 -> 122.0735157 | J132: 124.7065974 | K132: 122.0735157
B133: 54 | G133: 8 | H133: 2032 | I133: ='Analysis_w AFUDC'!N76 -> 125.1253536 | J133: 127.8242623 | K133: 125.1253536
B134: 55 | G134: 9 | H134: 2033 | I134: ='Analysis_w AFUDC'!N77 -> 128.2534874 | J134: 131.0198689 | K134: 128.2534874
B135: 56 | G135: 10 | H135: 2034 | I135: ='Analysis_w AFUDC'!N78 -> 131.4598246 | J135: 134.2953656 | K135: 131.4598246
B136: 57 | G136: 11 | H136: 2035 | I136: ='Analysis_w AFUDC'!N79 -> 134.7463202 | J136: 137.6527497 | K136: 134.7463202
B137: 58 | G137: 12 | H137: 2036 | I137: ='Analysis_w AFUDC'!N80 -> 138.1149782 | J137: 141.0940685 | K137: 138.1149782
B138: 59 | G138: 13 | H138: 2037 | I138: ='Analysis_w AFUDC'!N81 -> 141.5678527 | J138: 144.6214202 | K138: 141.5678527
B139: 60 | G139: 14 | H139: 2038 | I139: ='Analysis_w AFUDC'!N82 -> 145.107049 | J139: 148.2369557 | K139: 145.107049
B140: 61 | G140: 15 | H140: 2039 | I140: ='Analysis_w AFUDC'!N83 -> 148.7347252 | J140: 151.9428796 | K140: 148.7347252
B141: 62
B142: 63
B143: 64 | H143: ST Premium Inflated Installed Cost (incl AFUDC) | I143: $/kW | J143: $/kW | K143: $/kW
B144: 65 | G144: 0 | H144: =base_year -> 2024 | I144: ='Analysis_w AFUDC'!O68 -> 0 | J144: 0 | K144: 0
B145: 66 | G145: 1 | H145: =H144+1 -> 2025 | I145: ='Analysis_w AFUDC'!O69 -> 0 | J145: 0 | K145: 0
B146: 67 | G146: 2 | H146: =H145+1 -> 2026 | I146: ='Analysis_w AFUDC'!O70 -> 0 | J146: 0 | K146: 0
B147: 68 | G147: 3 | H147: 2027 | I147: ='Analysis_w AFUDC'!O71 -> 0 | J147: 0 | K147: 0
B148: 69 | G148: 4 | H148: 2028 | I148: ='Analysis_w AFUDC'!O72 -> 0 | J148: 0 | K148: 0
B149: 70 | G149: 5 | H149: 2029 | I149: ='Analysis_w AFUDC'!O73 -> 0 | J149: 0 | K149: 0
B150: 71 | G150: 6 | H150: 2030 | I150: ='Analysis_w AFUDC'!O74 -> 0 | J150: 0 | K150: 0
B151: 72 | G151: 7 | H151: 2031 | I151: ='Analysis_w AFUDC'!O75 -> 0 | J151: 0 | K151: 0
B152: 73 | G152: 8 | H152: 2032 | I152: ='Analysis_w AFUDC'!O76 -> 0 | J152: 0 | K152: 0
B153: 74 | G153: 9 | H153: 2033 | I153: ='Analysis_w AFUDC'!O77 -> 0 | J153: 0 | K153: 0
B154: 75 | G154: 10 | H154: 2034 | I154: ='Analysis_w AFUDC'!O78 -> 0 | J154: 0 | K154: 0
B155: 76 | G155: 11 | H155: 2035 | I155: ='Analysis_w AFUDC'!O79 -> 0 | J155: 0 | K155: 0
B156: 77 | G156: 12 | H156: 2036 | I156: ='Analysis_w AFUDC'!O80 -> 0 | J156: 0 | K156: 0
B157: 78 | G157: 13 | H157: 2037 | I157: ='Analysis_w AFUDC'!O81 -> 0 | J157: 0 | K157: 0
B158: 79 | G158: 14 | H158: 2038 | I158: ='Analysis_w AFUDC'!O82 -> 0 | J158: 0 | K158: 0
B159: 80 | G159: 15 | H159: 2039 | I159: ='Analysis_w AFUDC'!O83 -> 0 | J159: 0 | K159: 0

Sheet Analysis_w AFUDC
C11: PLANT SPECIFIC INPUTS
F14: Project Description (used on summary sheet) | G14: ='Asset Specific Inputs'!I14 -> Dist
A15: =ROW() -> 15 | F15: MW Capability of Plant | G15: ='Asset Specific Inputs'!I15 -> 1
A16: =ROW() -> 16 | F16: Real Inflation Rate % for ST | G16: ='Asset Specific Inputs'!I16 -> 0
A17: =ROW() -> 17 | F17: Transition Year for ST to LT (# yrs into the future from base year) | G17: ='Asset Specific Inputs'!I17 -> 10
A18: =ROW() -> 18 | F18: Real Infl Rate % for LT (beyond ST period) | G18: ='Asset Specific Inputs'!I18 -> 0
A19: =ROW() -> 19 | F19: % of Expenditures for Capitalized Interest | G19: ='Asset Specific Inputs'!I19 -> 1
A20: =ROW() -> 20 | F20: Tax Life (Yrs) | G20: ='Asset Specific Inputs'!I20 -> 20
A21: =ROW() -> 21 | F21: Plant Life (Yrs) | G21: ='Asset Specific Inputs'!I21 -> 51
A22: =ROW() -> 22 | F22: Salvage Value (or Site Restoration) | G22: ='Asset Specific Inputs'!I22 -> -0.2
A23: =ROW() -> 23 | F23: Nuclear Decommissioning Cost | G23: ='Asset Specific Inputs'!I23 -> 0
A24: =ROW() -> 24 | F24: Federal ITC % | G24: ='Asset Specific Inputs'!I24 -> 0
A25: =ROW() -> 25 | F25: Years Lag for Federal ITC realization | G25: ='Asset Specific Inputs'!I25 -> 0
A26: =ROW() -> 26 | F26: 1-time state deduct for Fed ITC tax basis reduction? | G26: ='Asset Specific Inputs'!I26 -> 0
A27: =ROW() -> 27 | F27: State ITC % | G27: ='Asset Specific Inputs'!I27 -> 0
A28: =ROW() -> 28 | F28: State ITC spread over how many years? | G28: ='Asset Specific Inputs'!I28 -> 0
F29: Years Lag for start of State ITC (not to exceed spread years minus one) | G29: ='Asset Specific Inputs'!I29 -> 0
A30: =ROW() -> 30 | F30: Portion of Federal ITC offsetting basis for Tax Deprec | G30: ='Asset Specific Inputs'!I30 -> 0
A31: =ROW() -> 31 | F31: Bonus Depreciation % | G31: ='Asset Specific Inputs'!I31 -> 0
A32: =ROW() -> 32 | F32: Portion of CWIP in Ratebase | G32: ='Asset Specific Inputs'!I32 -> 0
A33: =ROW() -> 33 | F33: Property Tax Basis Method | G33: ='Asset Specific Inputs'!I33 -> 3 | H33: (DEC/DEP=1, DEI=2, DEK=3, DEC/DEP detailed)
A34: =ROW() -> 34 | F34: Property Tax Rate % | G34: ='Asset Specific Inputs'!I34 -> 0.01021672052
A35: =ROW() -> 35 | F35: Insurance Rate % (applied to Orig Cost) | G35: ='Asset Specific Inputs'!I35 -> 0.000428
A36: =ROW() -> 36
A37: =ROW() -> 37 | K37: 1 | L37: 2 | M37: 3 | N37: 4 | O37: 5 | P37: 6 | Q37: 7 | R37: 8 | S37: 9 | T37: 10 | U37: 11 | V37: 12 | W37: 13 | X37: 14 | Y37: 15
A38: =ROW() -> 38 | I38: Reminder: Base Year = | J38: =base_year -> 2024 | K38: =base_year -> 2024 | L38: =K38+1 -> 2025 | M38: =L38+1 -> 2026 | N38: 2027 | O38: 2028 | P38: 2029 | Q38: 2030 | R38: 2031 | S38: 2032 | T38: 2033 | U38: 2034 | V38: 2035 | W38: 2036 | X38: 2037 | Y38: 2038
A39: =ROW() -> 39 | F39: Construction expenditures by year in Base Year $ | K39: =OFFSET('Asset Specific Inputs'!$I$38,K37,0,1,1) -> 100 | L39: =OFFSET('Asset Specific Inputs'!$I$38,L37,0,1,1) -> 0 | M39: =OFFSET('Asset Specific Inputs'!$I$38,M37,0,1,1) -> 0 | N39: =OFFSET('Asset Specific Inputs'!$I$38,N37,0,1,1) -> 0 | O39: =OFFSET('Asset Specific Inputs'!$I$38,O37,0,1,1) -> 0 | P39: =OFFSET('Asset Specific Inputs'!$I$38,P37,0,1,1) -> 0 | Q39: =OFFSET('Asset Specific Inputs'!$I$38,Q37,0,1,1) -> 0 | R39: =OFFSET('Asset Specific Inputs'!$I$38,R37,0,1,1) -> 0 | S39: =OFFSET('Asset Specific Inputs'!$I$38,S37,0,1,1) -> 0 | T39: =OFFSET('Asset Specific Inputs'!$I$38,T37,0,1,1) -> 0 | U39: =OFFSET('Asset Specific Inputs'!$I$38,U37,0,1,1) -> 0 | V39: =OFFSET('Asset Specific Inputs'!$I$38,V37,0,1,1) -> 0 | W39: =OFFSET('Asset Specific Inputs'!$I$38,W37,0,1,1) -> 0 | X39: =OFFSET('Asset Specific Inputs'!$I$38,X37,0,1,1) -> 0 | Y39: =OFFSET('Asset Specific Inputs'!$I$38,Y37,0,1,1) -> 0
A40: =ROW() -> 40 | F40: Closing to Plant in Service %* | J40: =IF(J110=base_year+COUNTIF($K$39:$AF$39,">0")-1,1,0) -> 0 | K40: =OFFSET('Asset Specific Inputs'!$I$55,K37,0,1,1) -> 1 | L40: =OFFSET('Asset Specific Inputs'!$I$55,L37,0,1,1) -> 0 | M40: =OFFSET('Asset Specific Inputs'!$I$55,M37,0,1,1) -> 0 | N40: =OFFSET('Asset Specific Inputs'!$I$55,N37,0,1,1) -> 0 | O40: =OFFSET('Asset Specific Inputs'!$I$55,O37,0,1,1) -> 0 | P40: =OFFSET('Asset Specific Inputs'!$I$55,P37,0,1,1) -> 0 | Q40: =OFFSET('Asset Specific Inputs'!$I$55,Q37,0,1,1) -> 0 | R40: =OFFSET('Asset Specific Inputs'!$I$55,R37,0,1,1) -> 0 | S40: =OFFSET('Asset Specific Inputs'!$I$55,S37,0,1,1) -> 0 | T40: =OFFSET('Asset Specific Inputs'!$I$55,T37,0,1,1) -> 0 | U40: =OFFSET('Asset Specific Inputs'!$I$55,U37,0,1,1) -> 0 | V40: =OFFSET('Asset Specific Inputs'!$I$55,V37,0,1,1) -> 0 | W40: =OFFSET('Asset Specific Inputs'!$I$55,W37,0,1,1) -> 0 | X40: =OFFSET('Asset Specific Inputs'!$I$55,X37,0,1,1) -> 0 | Y40: =OFFSET('Asset Specific Inputs'!$I$55,Y37,0,1,1) -> 0
A41: =ROW() -> 41 | G41: find 1st year of construction ---> | H41: =MATCH(TRUE,INDEX(ISNUMBER(K41:Y41),0),0) -> 1 | K41: =IF(K39>0,K39," ") -> 100 | L41: =IF(L39>0,L39," ") -> 
A42: =ROW() -> 42
A43: =ROW() -> 43
A44: =ROW() -> 44
A45: =ROW() -> 45 | J45: NPV Test Okay?
A46: =ROW() -> 46 | C46: RESULTS SUMMARY | J46: =IF(ROUND(G182,0)<>0,"NO!!!", "Yes ") -> Yes
A47: =ROW() -> 47 | E47: Reminder: Base Year = | F47: =base_year -> 2024
A48: =ROW() -> 48 | C48: Costs in $000 assuming Base Year Completion: | J48: Cost $/kW assuming Base Year Completion:
A49: =ROW() -> 49 | C49: Direct Cost | H49: =G112/(1+$M$60)^(COUNTIF(K$39:AF$39,">0")+$H$41-1-0.5) -> 98.7804878 | J49: Direct Cost | O49: =H49/$H$53 -> 98.7804878
A50: =ROW() -> 50 | C50: AFUDC | H50: =SUM(G118:G119)/(1+$M$60)^(COUNTIF(K$39:AF$39,">0")+$H$41-1-0.5) -> 3.915717073 | J50: AFUDC | O50: =H50/$H$53 -> 3.915717073
A51: =ROW() -> 51 | C51: Total Cost | H51: =SUM(H49:H50) -> 102.6962049 | J51: Total Cost | O51: =SUM(O49:O50) -> 102.6962049
A52: =ROW() -> 52
A53: =ROW() -> 53 | C53: MW Capability | H53: =G15 -> 1 | J53: Nominal Levelized FCR % (EOY convention) | O53: =G176/G125 -> 0.09545780298
A54: =ROW() -> 54 | J54: Real Levelized FCR % (EOY convention) | O54: =PMT(O57,G21,PV(disc_rate,G21,O53)) -> 0.06592762552
A55: =ROW() -> 55 | J55: Real Levelized FCR % (BOY convention) | O55: =O54/(1+$O$57) -> 0.06298202329
A56: =ROW() -> 56 | J56: PVRR Factor | O56: =-PV(disc_rate,G21,O53) -> 1.272646477
A57: =ROW() -> 57 | J57: Real LT Discount Rate | O57: =(1+disc_rate)/(1+$M$62)-1 -> 0.04676893621
A59: =ROW() -> 59 | L59: Real % | M59: Tot Infl %
A60: =ROW() -> 60 | K60: Inflation Rate % for ST | L60: =G16 -> 0 | M60: =(1+L60)*(1+infl)-1 -> 0.025
A61: =ROW() -> 61 | K61: Transition Year for ST to LT (# yrs into the future from base year) | L61: =G17 -> 10
A62: =ROW() -> 62 | K62: Infl Rate % for LT (beyond ST period) | L62: =G18 -> 0 | M62: =(1+L62)*(1+infl)-1 -> 0.025
A64: =ROW() -> 64 | K64: 85
A65: =ROW() -> 65 | M65: Total Infl Installed Cost $/kW
A66: =ROW() -> 66
A67: =ROW() -> 67 | M67: Total Cost (ST+LT) $/kW | N67: LT Cost $/kW | O67: ST Prem $/kW
A68: =ROW() -> 68 | K68: 0 | L68: =base_year -> 2024 | M68: =IF(L68<=base_year+$G$17,$O$51*(1+$M$60)^(L68-$F$47),IF(L68>=$F$47,M67*(1+$M$62))) -> 102.6962049 | N68: =OFFSET($M$68,$G$17,0,1,1)*(1+$M$62)^(L68-$L$68-$G$17) -> 102.6962049 | O68: =ROUND(M68-N68,4) -> 0
A69: =ROW() -> 69 | K69: 1 | L69: =L68+1 -> 2025 | M69: 105.26361 | N69: =OFFSET($M$68,$G$17,0,1,1)*(1+$M$62)^(L69-$L$68-$G$17) -> 105.26361 | O69: =ROUND(M69-N69,4) -> 0
A70: =ROW() -> 70 | K70: 2 | L70: =L69+1 -> 2026 | M70: 107.8952003 | N70: =OFFSET($M$68,$G$17,0,1,1)*(1+$M$62)^(L70-$L$68-$G$17) -> 107.8952003 | O70: 0
A71: =ROW() -> 71 | K71: 3 | L71: 2027 | M71: 110.5925803 | N71: 110.5925803 | O71: 0
A72: =ROW() -> 72 | K72: 4 | L72: 2028 | M72: 113.3573948 | N72: 113.3573948 | O72: 0
A73: =ROW() -> 73 | K73: 5 | L73: 2029 | M73: 116.1913296 | N73: 116.1913296 | O73: 0
A74: =ROW() -> 74 | K74: 6 | L74: 2030 | M74: 119.0961129 | N74: 119.0961129 | O74: 0
A75: =ROW() -> 75 | K75: 7 | L75: 2031 | M75: 122.0735157 | N75: 122.0735157 | O75: 0
A76: =ROW() -> 76 | K76: 8 | L76: 2032 | M76: 125.1253536 | N76: 125.1253536 | O76: 0
A77: =ROW() -> 77 | K77: 9 | L77: 2033 | M77: 128.2534874 | N77: 128.2534874 | O77: 0
A78: =ROW() -> 78 | K78: 10 | L78: 2034 | M78: 131.4598246 | N78: 131.4598246 | O78: 0
A79: =ROW() -> 79 | K79: 11 | L79: 2035 | M79: 134.7463202 | N79: 134.7463202 | O79: 0
A80: =ROW() -> 80 | K80: 12 | L80: 2036 | M80: 138.1149782 | N80: 138.1149782 | O80: 0
A81: =ROW() -> 81 | K81: 13 | L81: 2037 | M81: 141.5678527 | N81: 141.5678527 | O81: 0
A82: =ROW() -> 82 | K82: 14 | L82: 2038 | M82: 145.107049 | N82: 145.107049 | O82: 0
A83: =ROW() -> 83 | K83: 15 | L83: 2039 | M83: 148.7347252 | N83: 148.7347252 | O83: 0
A84: =ROW() -> 84
A85: =ROW() -> 85
A86: =ROW() -> 86
A87: =ROW() -> 87
A88: =ROW() -> 88
A89: =ROW() -> 89
A90: =ROW() -> 90
A91: =ROW() -> 91
A92: =ROW() -> 92
A93: =ROW() -> 93
A94: =ROW() -> 94
A95: =ROW() -> 95
A96: =ROW() -> 96
A97: =ROW() -> 97
A98: =ROW() -> 98
A99: =ROW() -> 99 | B99: -------------------------------------------------- CALCULATIONS -------------------------------------------------------------------------
A100: =ROW() -> 100
A101: =ROW() -> 101 | B101: CONSTRUCTION PERIOD
A102: =ROW() -> 102 | J102: 0 | K102: 1 | L102: 2 | M102: 3 | N102: 4 | O102: 5 | P102: 6 | Q102: 7 | R102: 8 | S102: 9 | T102: 10 | U102: 11 | V102: 12 | W102: 13 | X102: 14 | Y102: 15 | Z102: 16 | AA102: 17 | AB102: 18 | AC102: 19 | AD102: 20 | AE102: 21 | AF102: 22
A103: =ROW() -> 103 | J103: =K38-1 -> 2023 | K103: =J103+1 -> 2024 | L103: =K103+1 -> 2025 | M103: =L103+1 -> 2026 | N103: =M103+1 -> 2027 | O103: =N103+1 -> 2028 | P103: 2029 | Q103: 2030 | R103: 2031 | S103: 2032 | T103: 2033 | U103: 2034 | V103: 2035 | W103: 2036 | X103: 2037 | Y103: 2038 | Z103: 2039 | AA103: 2040 | AB103: 2041 | AC103: 2042 | AD103: 2043 | AE103: 2044 | AF103: 2045
A104: =ROW() -> 104 | B104: Base Year $ Expenditures split into beg and end of year cash flows | J104: =0.5*J39+0.5*K39 -> 50 | K104: 50 | L104: 0 | M104: 0 | N104: 0 | O104: 0 | P104: 0 | Q104: 0 | R104: 0 | S104: 0 | T104: 0 | U104: 0 | V104: 0 | W104: 0 | X104: 0 | Y104: 0 | Z104: 0 | AA104: 0 | AB104: 0 | AC104: 0 | AD104: 0 | AE104: 0 | AF104: 0
A105: =ROW() -> 105 | B105: Years of Inflation Applied | J105: =J103-base_year+0.5 -> -0.5 | K105: 0.5 | L105: 1.5 | M105: 2.5 | N105: 3.5 | O105: 4.5 | P105: 5.5 | Q105: 6.5 | R105: 7.5 | S105: 8.5 | T105: 9.5 | U105: 10.5 | V105: 11.5 | W105: 12.5 | X105: 13.5 | Y105: 14.5 | Z105: 15.5 | AA105: 16.5 | AB105: 17.5 | AC105: 18.5 | AD105: 19.5 | AE105: 20.5 | AF105: 21.5
A106: =ROW() -> 106 | B106: Infl $ expenditures using beg_end of year cash flow convention | J106: =J104*(1+infl)^J105 -> 49.38647983 | K106: 50.62114183 | L106: 0 | M106: 0 | N106: 0 | O106: 0 | P106: 0 | Q106: 0 | R106: 0 | S106: 0 | T106: 0 | U106: 0 | V106: 0 | W106: 0 | X106: 0 | Y106: 0 | Z106: 0 | AA106: 0 | AB106: 0 | AC106: 0 | AD106: 0 | AE106: 0 | AF106: 0
A107: =ROW() -> 107
A108: =ROW() -> 108
A109: =ROW() -> 109
A110: =ROW() -> 110 | G110: Totals | J110: =J$103 -> 2023 | K110: 2024 | L110: 2025 | M110: 2026 | N110: 2027 | O110: 2028 | P110: 2029 | Q110: 2030 | R110: 2031 | S110: 2032 | T110: 2033 | U110: 2034 | V110: 2035 | W110: 2036 | X110: 2037 | Y110: 2038 | Z110: 2039 | AA110: 2040 | AB110: 2041 | AC110: 2042 | AD110: 2043 | AE110: 2044 | AF110: 2045
A111: =ROW() -> 111 | B111: CWIP in Ratebase (see Input Notes re: setting % to zero)
A112: =ROW() -> 112 | B112: Construction Expenditure | G112: =SUM(J112:AF112) -> 100.0076217 | J112: =J106 -> 49.38647983 | K112: =K106 -> 50.62114183 | L112: 0 | M112: 0 | N112: 0 | O112: 0 | P112: 0 | Q112: 0 | R112: 0 | S112: 0 | T112: 0 | U112: 0 | V112: 0 | W112: 0 | X112: 0 | Y112: 0 | Z112: 0 | AA112: 0 | AB112: 0 | AC112: 0 | AD112: 0 | AE112: 0 | AF112: 0
A113: =ROW() -> 113 | B113: CWIP to include in RB period-end before Closings | J113: =J112*$G$32+I116 -> 0 | K113: 0 | L113: 0 | M113: 0 | N113: 0 | O113: 0 | P113: 0 | Q113: 0 | R113: 0 | S113: 0 | T113: 0 | U113: 0 | V113: 0 | W113: 0 | X113: 0 | Y113: 0 | Z113: 0 | AA113: 0 | AB113: 0 | AC113: 0 | AD113: 0 | AE113: 0 | AF113: 0
A114: =ROW() -> 114
A115: =ROW() -> 115 | B115: Less: Closing to Plant (for RB calc) | J115: =-J113*J40 -> 0 | K115: 0 | L115: 0 | M115: 0 | N115: 0 | O115: 0 | P115: 0 | Q115: 0 | R115: 0 | S115: 0 | T115: 0 | U115: 0 | V115: 0 | W115: 0 | X115: 0 | Y115: 0 | Z115: 0 | AA115: 0 | AB115: 0 | AC115: 0 | AD115: 0 | AE115: 0 | AF115: 0
A116: =ROW() -> 116 | B116: CWIP for RB calc period-end after Closings | J116: =J113+J115 -> 0 | K116: =K113+K115 -> 0 | L116: 0 | M116: 0 | N116: 0 | O116: 0 | P116: 0 | Q116: 0 | R116: 0 | S116: 0 | T116: 0 | U116: 0 | V116: 0 | W116: 0 | X116: 0 | Y116: 0 | Z116: 0 | AA116: 0 | AB116: 0 | AC116: 0 | AD116: 0 | AE116: 0 | AF116: 0
A117: =ROW() -> 117 | B117: AFUDC capitalized to Plant in Service:
A118: =ROW() -> 118 | B118: AFUDC debt (calc from prior period-end CWIP) | G118: =SUM(J118:AF118) -> 1.453484845 | J118: =(I122)*afudc_debt -> 0 | K118: 1.453484845 | L118: 0 | M118: 0 | N118: 0 | O118: 0 | P118: 0 | Q118: 0 | R118: 0 | S118: 0 | T118: 0 | U118: 0 | V118: 0 | W118: 0 | X118: 0 | Y118: 0 | Z118: 0 | AA118: 0 | AB118: 0 | AC118: 0 | AD118: 0 | AE118: 0 | AF118: 0
A119: =ROW() -> 119 | B119: AFUDC equity (calc from prior period-end CWIP) | G119: =SUM(J119:AF119) -> 2.510876541 | J119: =(I122)*afudc_equity -> 0 | K119: 2.510876541 | L119: 0 | M119: 0 | N119: 0 | O119: 0 | P119: 0 | Q119: 0 | R119: 0 | S119: 0 | T119: 0 | U119: 0 | V119: 0 | W119: 0 | X119: 0 | Y119: 0 | Z119: 0 | AA119: 0 | AB119: 0 | AC119: 0 | AD119: 0 | AE119: 0 | AF119: 0
A120: =ROW() -> 120 | B120: CWIP for AFUDC calc period-end before Closings | J120: =I122+J112-(J113-I113-I115)+J118+J119 -> 49.38647983 | K120: 103.971983 | L120: 0 | M120: 0 | N120: 0 | O120: 0 | P120: 0 | Q120: 0 | R120: 0 | S120: 0 | T120: 0 | U120: 0 | V120: 0 | W120: 0 | X120: 0 | Y120: 0 | Z120: 0 | AA120: 0 | AB120: 0 | AC120: 0 | AD120: 0 | AE120: 0 | AF120: 0
A121: =ROW() -> 121 | B121: Less: Closing to Plant | J121: =-J120*J40 -> 0 | K121: -103.971983 | L121: 0 | M121: 0 | N121: 0 | O121: 0 | P121: 0 | Q121: 0 | R121: 0 | S121: 0 | T121: 0 | U121: 0 | V121: 0 | W121: 0 | X121: 0 | Y121: 0 | Z121: 0 | AA121: 0 | AB121: 0 | AC121: 0 | AD121: 0 | AE121: 0 | AF121: 0
A122: =ROW() -> 122 | B122: CWIP for AFUDC calc period-end after Closings | J122: =J120+J121 -> 49.38647983 | K122: =K120+K121 -> 0 | L122: 0 | M122: 0 | N122: 0 | O122: 0 | P122: 0 | Q122: 0 | R122: 0 | S122: 0 | T122: 0 | U122: 0 | V122: 0 | W122: 0 | X122: 0 | Y122: 0 | Z122: 0 | AA122: 0 | AB122: 0 | AC122: 0 | AD122: 0 | AE122: 0 | AF122: 0
A123: =ROW() -> 123 | B123: CWIP incl AFUDC period-end after Closings | J123: =J116+J122 -> 49.38647983 | K123: 0 | L123: 0 | M123: 0 | N123: 0 | O123: 0 | P123: 0 | Q123: 0 | R123: 0 | S123: 0 | T123: 0 | U123: 0 | V123: 0 | W123: 0 | X123: 0 | Y123: 0 | Z123: 0 | AA123: 0 | AB123: 0 | AC123: 0 | AD123: 0 | AE123: 0 | AF123: 0
A124: =ROW() -> 124 | B124: Amount Closed to Plant | J124: =-(J115+J121) -> 0 | K124: 103.971983 | L124: 0 | M124: 0 | N124: 0 | O124: 0 | P124: 0 | Q124: 0 | R124: 0 | S124: 0 | T124: 0 | U124: 0 | V124: 0 | W124: 0 | X124: 0 | Y124: 0 | Z124: 0 | AA124: 0 | AB124: 0 | AC124: 0 | AD124: 0 | AE124: 0 | AF124: 0
A125: =ROW() -> 125 | B125: Cumulative Closed to Plant (Gross Plant) | G125: =SUM(G112:G119) -> 103.971983 | J125: =IF(J112>0,I125+J124,0) -> 0 | K125: 103.971983 | L125: 0 | M125: 0 | N125: 0 | O125: 0 | P125: 0 | Q125: 0 | R125: 0 | S125: 0 | T125: 0 | U125: 0 | V125: 0 | W125: 0 | X125: 0 | Y125: 0 | Z125: 0 | AA125: 0 | AB125: 0 | AC125: 0 | AD125: 0 | AE125: 0 | AF125: 0
A126: =ROW() -> 126
A127: =ROW() -> 127 | B127: Interest for Tax Purposes | J127: =J$103 -> 2023 | K127: =K$103 -> 2024 | L127: =L$103 -> 2025 | M127: =M$103 -> 2026 | N127: =N$103 -> 2027 | O127: =O$105 -> 4.5 | P127: 5.5 | Q127: 6.5 | R127: 7.5 | S127: 8.5 | T127: 9.5 | U127: 10.5 | V127: 11.5 | W127: 12.5 | X127: 13.5 | Y127: 14.5 | Z127: 15.5 | AA127: 16.5 | AB127: 17.5 | AC127: 18.5 | AD127: 19.5 | AE127: 20.5 | AF127: 21.5
A128: =ROW() -> 128
A129: =ROW() -> 129 | B129: CWIP for Cap Interest beg period | J129: =I134 -> 0 | K129: =J134 -> 49.38647983 | L129: 0 | M129: 0 | N129: 0 | O129: 0 | P129: 0 | Q129: 0 | R129: 0 | S129: 0 | T129: 0 | U129: 0 | V129: 0 | W129: 0 | X129: 0 | Y129: 0 | Z129: 0 | AA129: 0 | AB129: 0 | AC129: 0 | AD129: 0 | AE129: 0 | AF129: 0
A130: =ROW() -> 130 | B130: Expenditure | J130: =J112*$G$19 -> 49.38647983 | K130: 50.62114183 | L130: 0 | M130: 0 | N130: 0 | O130: 0 | P130: 0 | Q130: 0 | R130: 0 | S130: 0 | T130: 0 | U130: 0 | V130: 0 | W130: 0 | X130: 0 | Y130: 0 | Z130: 0 | AA130: 0 | AB130: 0 | AC130: 0 | AD130: 0 | AE130: 0 | AF130: 0
A131: =ROW() -> 131 | B131: Capitalized Interest | G131: =SUM(J131:AF131) -> 3.03726851 | J131: =(J129)*cap_int -> 0 | K131: 3.03726851 | L131: 0 | M131: 0 | N131: 0 | O131: 0 | P131: 0 | Q131: 0 | R131: 0 | S131: 0 | T131: 0 | U131: 0 | V131: 0 | W131: 0 | X131: 0 | Y131: 0 | Z131: 0 | AA131: 0 | AB131: 0 | AC131: 0 | AD131: 0 | AE131: 0 | AF131: 0
A132: =ROW() -> 132 | B132: CWIP period-end before closings | J132: =SUM(J129:J131) -> 49.38647983 | K132: =SUM(K129:K131) -> 103.0448902 | L132: 0 | M132: 0 | N132: 0 | O132: 0 | P132: 0 | Q132: 0 | R132: 0 | S132: 0 | T132: 0 | U132: 0 | V132: 0 | W132: 0 | X132: 0 | Y132: 0 | Z132: 0 | AA132: 0 | AB132: 0 | AC132: 0 | AD132: 0 | AE132: 0 | AF132: 0
A133: =ROW() -> 133 | B133: Less: Closings to Plant | J133: =-J40*J132 -> 0 | K133: -103.0448902 | L133: 0 | M133: 0 | N133: 0 | O133: 0 | P133: 0 | Q133: 0 | R133: 0 | S133: 0 | T133: 0 | U133: 0 | V133: 0 | W133: 0 | X133: 0 | Y133: 0 | Z133: 0 | AA133: 0 | AB133: 0 | AC133: 0 | AD133: 0 | AE133: 0 | AF133: 0
A134: =ROW() -> 134 | B134: CWIP period-end after Closings | J134: =J132+J133 -> 49.38647983 | K134: =K132+K133 -> 0 | L134: 0 | M134: 0 | N134: 0 | O134: 0 | P134: 0 | Q134: 0 | R134: 0 | S134: 0 | T134: 0 | U134: 0 | V134: 0 | W134: 0 | X134: 0 | Y134: 0 | Z134: 0 | AA134: 0 | AB134: 0 | AC134: 0 | AD134: 0 | AE134: 0 | AF134: 0
A135: =ROW() -> 135
A136: =ROW() -> 136
A137: =ROW() -> 137 | B137: Construction Period After-Tax Cost Cash Flows
A138: =ROW() -> 138 | B138: Direct Expenditures | J138: =J112 -> 49.38647983 | K138: =K112 -> 50.62114183 | L138: 0 | M138: 0 | N138: 0 | O138: 0 | P138: 0 | Q138: 0 | R138: 0 | S138: 0 | T138: 0 | U138: 0 | V138: 0 | W138: 0 | X138: 0 | Y138: 0 | Z138: 0 | AA138: 0 | AB138: 0 | AC138: 0 | AD138: 0 | AE138: 0 | AF138: 0
A139: =ROW() -> 139 | B139: Tax Impact of Capitalizing of Interest | J139: =J131*Tax_Rate -> 0 | K139: 0.7568748039 | L139: 0 | M139: 0 | N139: 0 | O139: 0 | P139: 0 | Q139: 0 | R139: 0 | S139: 0 | T139: 0 | U139: 0 | V139: 0 | W139: 0 | X139: 0 | Y139: 0 | Z139: 0 | AA139: 0 | AB139: 0 | AC139: 0 | AD139: 0 | AE139: 0 | AF139: 0
A140: =ROW() -> 140 | B140: Total Construction Period Cost Cash Flows (AT) | J140: =J138+J139 -> 49.38647983 | K140: =K138+K139 -> 51.37801663 | L140: 0 | M140: 0 | N140: 0 | O140: 0 | P140: 0 | Q140: 0 | R140: 0 | S140: 0 | T140: 0 | U140: 0 | V140: 0 | W140: 0 | X140: 0 | Y140: 0 | Z140: 0 | AA140: 0 | AB140: 0 | AC140: 0 | AD140: 0 | AE140: 0 | AF140: 0
A141: =ROW() -> 141 | B141: PV Construction Period Cost Cash Flows (AT) | G141: =NPV(disc_rate,J140:BX140)*(1+disc_rate)^(COUNTIF(J112:AF112,">0")+H41-1) -> 104.3666554
A142: =ROW() -> 142
A143: =ROW() -> 143 | B143: SERVICE PERIOD | J143: 1 | K143: 2 | L143: 3 | M143: 4 | N143: 5 | O143: 6 | P143: 7 | Q143: 8 | R143: 9 | S143: 10 | T143: 11 | U143: 12 | V143: 13 | W143: 14 | X143: 15 | Y143: 16 | Z143: 17 | AA143: 18 | AB143: 19 | AC143: 20 | AD143: 21 | AE143: 22 | AF143: 23 | AG143: 24 | AH143: 25 | AI143: 26 | AJ143: 27 | AK143: 28 | AL143: 29 | AM143: 30 | AN143: 31 | AO143: 32 | AP143: 33 | AQ143: 34 | AR143: 35 | AS143: 36 | AT143: 37 | AU143: 38 | AV143: 39 | AW143: 40 | AX143: 41 | AY143: 42 | AZ143: 43 | BA143: 44 | BB143: 45 | BC143: 46 | BD143: 47 | BE143: 48 | BF143: 49 | BG143: 50 | BH143: 51 | BI143: 52 | BJ143: 53 | BK143: 54 | BL143: 55 | BM143: 56 | BN143: 57 | BO143: 58 | BP143: 59 | BQ143: 60 | BR143: 61 | BS143: 62 | BT143: 63 | BU143: 64 | BV143: 65 | BW143: 66 | BX143: 67
A144: =ROW() -> 144 | J144: =J127+COUNTIF(J138:AF138,">0") -> 2025 | K144: =J144+1 -> 2026 | L144: =K144+1 -> 2027 | M144: 2028 | N144: 2029 | O144: 2030 | P144: 2031 | Q144: 2032 | R144: 2033 | S144: 2034 | T144: 2035 | U144: 2036 | V144: 2037 | W144: 2038 | X144: 2039 | Y144: 2040 | Z144: 2041 | AA144: 2042 | AB144: 2043 | AC144: 2044 | AD144: 2045 | AE144: 2046 | AF144: 2047 | AG144: 2048 | AH144: 2049 | AI144: 2050 | AJ144: 2051 | AK144: 2052 | AL144: 2053 | AM144: 2054 | AN144: 2055 | AO144: 2056 | AP144: 2057 | AQ144: 2058 | AR144: 2059 | AS144: 2060 | AT144: 2061 | AU144: 2062 | AV144: 2063 | AW144: 2064 | AX144: 2065 | AY144: 2066 | AZ144: 2067 | BA144: 2068 | BB144: 2069 | BC144: 2070 | BD144: 2071 | BE144: 2072 | BF144: 2073 | BG144: 2074 | BH144: 2075 | BI144: 2076 | BJ144: 2077 | BK144: 2078 | BL144: 2079 | BM144: 2080 | BN144: 2081 | BO144: 2082 | BP144: 2083 | BQ144: 2084 | BR144: 2085 | BS144: 2086 | BT144: 2087 | BU144: 2088 | BV144: 2089 | BW144: 2090 | BX144: =BW144+1 -> 2091
A145: =ROW() -> 145 | B145: Tax Depreciation Rates | J145: =VLOOKUP($G$20,tax_dep_rates,J143+1,FALSE) -> 0.074 | K145: 0.0695 | L145: 0.0645 | M145: 0.0595 | N145: 0.055 | O145: 0.051 | P145: 0.047 | Q145: 0.045 | R145: 0.045 | S145: 0.045 | T145: 0.045 | U145: 0.045 | V145: 0.045 | W145: 0.045 | X145: 0.045 | Y145: 0.045 | Z145: 0.045 | AA145: 0.045 | AB145: 0.045 | AC145: 0.0395 | AD145: 0 | AE145: 0 | AF145: 0 | AG145: 0 | AH145: 0 | AI145: 0 | AJ145: 0 | AK145: 0 | AL145: 0 | AM145: 0 | AN145: 0 | AO145: 0 | AP145: 0 | AQ145: 0 | AR145: 0 | AS145: 0 | AT145: 0 | AU145: 0 | AV145: 0 | AW145: 0 | AX145: 0 | AY145: 0 | AZ145: 0 | BA145: 0 | BB145: 0 | BC145: 0 | BD145: 0 | BE145: 0 | BF145: 0 | BG145: 0 | BH145: 0 | BI145: 0 | BJ145: 0 | BK145: 0 | BL145: 0 | BM145: 0 | BN145: 0 | BO145: 0 | BP145: 0 | BQ145: 0 | BR145: 0 | BS145: 0 | BT145: 0 | BU145: 0 | BV145: =VLOOKUP($G$20,tax_dep_rates,BV143+1,FALSE) -> 0 | BW145: =VLOOKUP($G$20,tax_dep_rates,BW143+1,FALSE) -> 0 | BX145: =VLOOKUP($G$20,tax_dep_rates,BX143+1,FALSE) -> 0
A146: =ROW() -> 146 | B146: Tax Basis for MACRS Depreciation | G146: =G112*(1-G24*G30)-G147 -> 100.0076217
A147: =ROW() -> 147 | B147: Bonus Depreciation | G147: =G112*(1-G24*G30)*G31 -> 0
A148: =ROW() -> 148 | B148: Salvage Value (or Site Restoration Cost) | J148: =IF(J144=$J$144+$G$21-1,$G$22*$G$125,0) -> 0 | K148: 0 | L148: 0 | M148: 0 | N148: 0 | O148: 0 | P148: 0 | Q148: 0 | R148: 0 | S148: 0 | T148: 0 | U148: 0 | V148: 0 | W148: 0 | X148: 0 | Y148: 0 | Z148: 0 | AA148: 0 | AB148: 0 | AC148: 0 | AD148: 0 | AE148: 0 | AF148: 0 | AG148: 0 | AH148: 0 | AI148: 0 | AJ148: 0 | AK148: 0 | AL148: 0 | AM148: 0 | AN148: 0 | AO148: 0 | AP148: 0 | AQ148: 0 | AR148: 0 | AS148: 0 | AT148: 0 | AU148: 0 | AV148: 0 | AW148: 0 | AX148: 0 | AY148: 0 | AZ148: 0 | BA148: 0 | BB148: 0 | BC148: 0 | BD148: 0 | BE148: 0 | BF148: 0 | BG148: 0 | BH148: -20.79439661 | BI148: 0 | BJ148: 0 | BK148: 0 | BL148: 0 | BM148: 0 | BN148: 0 | BO148: 0 | BP148: 0 | BQ148: 0 | BR148: 0 | BS148: 0 | BT148: 0 | BU148: 0 | BV148: =IF(BV144=$J$144+$G$21-1,$G$22*$G$125,0) -> 0 | BW148: =IF(BW144=$J$144+$G$21-1,$G$22*$G$125,0) -> 0 | BX148: =IF(BX144=$J$144+$G$21-1,$G$22*$G$125,0) -> 0
A149: =ROW() -> 149 | B149: Nuclear Decommissioning Cost | J149: =IF(J144<=$J$144+$G$21-1,$G$23*$G$125,0) -> 0 | K149: 0 | L149: 0 | M149: 0 | N149: 0 | O149: 0 | P149: 0 | Q149: 0 | R149: 0 | S149: 0 | T149: 0 | U149: 0 | V149: 0 | W149: 0 | X149: 0 | Y149: 0 | Z149: 0 | AA149: 0 | AB149: 0 | AC149: 0 | AD149: 0 | AE149: 0 | AF149: 0 | AG149: 0 | AH149: 0 | AI149: 0 | AJ149: 0 | AK149: 0 | AL149: 0 | AM149: 0 | AN149: 0 | AO149: 0 | AP149: 0 | AQ149: 0 | AR149: 0 | AS149: 0 | AT149: 0 | AU149: 0 | AV149: 0 | AW149: 0 | AX149: 0 | AY149: 0 | AZ149: 0 | BA149: 0 | BB149: 0 | BC149: 0 | BD149: 0 | BE149: 0 | BF149: 0 | BG149: 0 | BH149: 0 | BI149: 0 | BJ149: 0 | BK149: 0 | BL149: 0 | BM149: 0 | BN149: 0 | BO149: 0 | BP149: 0 | BQ149: 0 | BR149: 0 | BS149: 0 | BT149: 0 | BU149: 0 | BV149: =IF(BV144<=$J$144+$G$21-1,$G$23*$G$125,0) -> 0 | BW149: =IF(BW144<=$J$144+$G$21-1,$G$23*$G$125,0) -> 0 | BX149: =IF(BX144<=$J$144+$G$21-1,$G$23*$G$125,0) -> 0
A150: =ROW() -> 150 | B150: Property Tax (if Nuclear case, may be fixed input) | G150: =NPV(disc_rate,J150:BX150) -> 10.75660095 | J150: =IF(J144<=$J$144+$G$21-1,OFFSET(J189,$G$33,0,1,1)*$G$34,0) -> 1.062252693 | K150: =IF(K144<=$J$144+$G$21-1,OFFSET(K189,$G$33,0,1,1)*$G$34,0) -> 1.041424209 | L150: 1.020595724 | M150: 0.9997672402 | N150: 0.978938756 | O150: 0.9581102719 | P150: 0.9372817877 | Q150: 0.9164533035 | R150: 0.8956248193 | S150: 0.8747963352 | T150: 0.853967851 | U150: 0.8331393668 | V150: 0.8123108827 | W150: 0.7914823985 | X150: 0.7706539143 | Y150: 0.7498254301 | Z150: 0.728996946 | AA150: 0.7081684618 | AB150: 0.6873399776 | AC150: 0.6665114935 | AD150: 0.6456830093 | AE150: 0.6248545251 | AF150: 0.604026041 | AG150: 0.5831975568 | AH150: 0.5623690726 | AI150: 0.5415405884 | AJ150: 0.5207121043 | AK150: 0.4998836201 | AL150: 0.4790551359 | AM150: 0.4582266518 | AN150: 0.4373981676 | AO150: 0.4165696834 | AP150: 0.3957411992 | AQ150: 0.3749127151 | AR150: 0.3540842309 | AS150: 0.3332557467 | AT150: 0.3124272626 | AU150: 0.2915987784 | AV150: 0.2707702942 | AW150: 0.24994181 | AX150: 0.2291133259 | AY150: 0.2082848417 | AZ150: 0.1874563575 | BA150: 0.1666278734 | BB150: 0.1457993892 | BC150: 0.124970905 | BD150: 0.1041424209 | BE150: 0.08331393668 | BF150: 0.06248545251 | BG150: 0.04165696834 | BH150: 0.02082848417 | BI150: 0 | BJ150: 0 | BK150: 0 | BL150: 0 | BM150: 0 | BN150: 0 | BO150: 0 | BP150: 0 | BQ150: 0 | BR150: 0 | BS150: 0 | BT150: 0 | BU150: 0 | BV150: 0 | BW150: =IF(BW144<=$J$144+$G$21-1,OFFSET(BW189,$G$33,0,1,1)*$G$34,0) -> 0 | BX150: =IF(BX144<=$J$144+$G$21-1,OFFSET(BX189,$G$33,0,1,1)*$G$34,0) -> 0
A151: =ROW() -> 151 | B151: Insurance | G151: =NPV(disc_rate,J151:BX151) -> 0.8590143951 | J151: =IF(AND(J143<=$G$21,J143<=$G$17),$G$35*$G$125*(1+$M$60)^J143,IF(J143<=$G$21,I151*(1+$M$62),0)) -> 0.04561250896 | K151: =IF(AND(K143<=$G$21,K143<=$G$17),$G$35*$G$125*(1+$M$60)^K143,IF(K143<=$G$21,J151*(1+$M$62),0)) -> 0.04675282169 | L151: 0.04792164223 | M151: 0.04911968328 | N151: 0.05034767537 | O151: 0.05160636725 | P151: 0.05289652643 | Q151: 0.05421893959 | R151: 0.05557441308 | S151: 0.05696377341 | T151: 0.05838786775 | U151: 0.05984756444 | V151: 0.06134375355 | W151: 0.06287734739 | X151: 0.06444928107 | Y151: 0.0660605131 | Z151: 0.06771202593 | AA151: 0.06940482658 | AB151: 0.07113994724 | AC151: 0.07291844592 | AD151: 0.07474140707 | AE151: 0.07660994225 | AF151: 0.0785251908 | AG151: 0.08048832057 | AH151: 0.08250052859 | AI151: 0.0845630418 | AJ151: 0.08667711785 | AK151: 0.08884404579 | AL151: 0.09106514694 | AM151: 0.09334177561 | AN151: 0.09567532 | AO151: 0.098067203 | AP151: 0.1005188831 | AQ151: 0.1030318552 | AR151: 0.1056076515 | AS151: 0.1082478428 | AT151: 0.1109540389 | AU151: 0.1137278899 | AV151: 0.1165710871 | AW151: 0.1194853643 | AX151: 0.1224724984 | AY151: 0.1255343109 | AZ151: 0.1286726686 | BA151: 0.1318894853 | BB151: 0.1351867225 | BC151: 0.1385663905 | BD151: 0.1420305503 | BE151: 0.1455813141 | BF151: 0.1492208469 | BG151: 0.1529513681 | BH151: 0.1567751523 | BI151: 0 | BJ151: 0 | BK151: 0 | BL151: 0 | BM151: 0 | BN151: 0 | BO151: 0 | BP151: 0 | BQ151: 0 | BR151: 0 | BS151: 0 | BT151: 0 | BU151: 0 | BV151: 0 | BW151: =IF(AND(BW143<=$G$21,BW143<=$G$17),$G$35*$G$125*(1+$M$60)^BW143,IF(BW143<=$G$21,BV151*(1+$M$62),0)) -> 0 | BX151: =IF(AND(BX143<=$G$21,BX143<=$G$17),$G$35*$G$125*(1+$M$60)^BX143,IF(BX143<=$G$21,BW151*(1+$M$62),0)) -> 0
A152: =ROW() -> 152
A153: =ROW() -> 153
A154: =ROW() -> 154
A155: =ROW() -> 155
A156: =ROW() -> 156 | B156: Service Period After-Tax Cost Cash Flows
A157: =ROW() -> 157 | B157: Investment Tax Credit | E157: (amortization of the ITC -- see Note A) | J157: =IF(AND(J143>$G$25,J143<=$G$21),-$G$24*$G$112/($G$21-$G$25),0) -> 0 | K157: =IF(AND(K143>$G$25,K143<=$G$21),-$G$24*$G$112/($G$21-$G$25),0) -> 0 | L157: 0 | M157: 0 | N157: 0 | O157: 0 | P157: 0 | Q157: 0 | R157: 0 | S157: 0 | T157: 0 | U157: 0 | V157: 0 | W157: 0 | X157: 0 | Y157: 0 | Z157: 0 | AA157: 0 | AB157: 0 | AC157: 0 | AD157: 0 | AE157: 0 | AF157: 0 | AG157: 0 | AH157: 0 | AI157: 0 | AJ157: 0 | AK157: 0 | AL157: 0 | AM157: 0 | AN157: 0 | AO157: 0 | AP157: 0 | AQ157: 0 | AR157: 0 | AS157: 0 | AT157: 0 | AU157: 0 | AV157: 0 | AW157: 0 | AX157: 0 | AY157: 0 | AZ157: 0 | BA157: 0 | BB157: 0 | BC157: 0 | BD157: 0 | BE157: 0 | BF157: 0 | BG157: 0 | BH157: 0 | BI157: 0 | BJ157: 0 | BK157: 0 | BL157: 0 | BM157: 0 | BN157: 0 | BO157: 0 | BP157: 0 | BQ157: 0 | BR157: 0 | BS157: 0 | BT157: 0 | BU157: 0 | BV157: 0 | BW157: =IF(AND(BW143>$G$25,BW143<=$G$21),-$G$24*$G$112/($G$21-$G$25),0) -> 0 | BX157: =IF(AND(BX143>$G$25,BX143<=$G$21),-$G$24*$G$112/($G$21-$G$25),0) -> 0
A158: =ROW() -> 158 | B158: Investment Tax Credit STATE | E158: (no amortization assumed -- see Note A) | J158: =IF(AND(J143<=$G$28,J143>$G$29),-$G$27*$G$112/($G$28-$G$29),0)*(1-Tax_Rate) -> 0 | K158: 0 | L158: 0 | M158: 0 | N158: 0 | O158: 0 | P158: 0 | Q158: 0 | R158: 0 | S158: 0 | T158: 0 | U158: 0 | V158: 0 | W158: 0 | X158: 0 | Y158: 0 | Z158: 0 | AA158: 0 | AB158: 0 | AC158: 0 | AD158: 0 | AE158: 0 | AF158: 0 | AG158: 0 | AH158: 0 | AI158: 0 | AJ158: 0 | AK158: 0 | AL158: 0 | AM158: 0 | AN158: 0 | AO158: 0 | AP158: 0 | AQ158: 0 | AR158: 0 | AS158: 0 | AT158: 0 | AU158: 0 | AV158: 0 | AW158: 0 | AX158: 0 | AY158: 0 | AZ158: 0 | BA158: 0 | BB158: 0 | BC158: 0 | BD158: 0 | BE158: 0 | BF158: 0 | BG158: 0 | BH158: 0 | BI158: 0 | BJ158: 0 | BK158: 0 | BL158: 0 | BM158: 0 | BN158: 0 | BO158: 0 | BP158: 0 | BQ158: 0 | BR158: 0 | BS158: 0 | BT158: 0 | BU158: 0 | BV158: =IF(AND(BV143<=$G$28,BV143>$G$29),-$G$27*$G$112/($G$28-$G$29),0)*(1-Tax_Rate) -> 0 | BW158: =IF(AND(BW143<=$G$28,BW143>$G$29),-$G$27*$G$112/($G$28-$G$29),0)*(1-Tax_Rate) -> 0 | BX158: =IF(AND(BX143<=$G$28,BX143>$G$29),-$G$27*$G$112/($G$28-$G$29),0)*(1-Tax_Rate) -> 0
A159: =ROW() -> 159 | B159: State income tax adjustment for Federal ITC related tax basis adjustment (Note A) | J159: =IF(AND($G$26="yes",J143=$G$25+1),-$G$112*$G$24*$G$30*state_tax_rate*(1-fed_tax_rate),0) -> 0 | K159: 0 | L159: 0 | M159: 0 | N159: 0 | O159: 0 | P159: 0 | Q159: 0 | R159: 0 | S159: 0 | T159: 0 | U159: 0 | V159: 0 | W159: 0 | X159: 0 | Y159: 0 | Z159: 0 | AA159: 0 | AB159: 0 | AC159: 0 | AD159: 0 | AE159: 0 | AF159: 0 | AG159: 0 | AH159: 0 | AI159: 0 | AJ159: 0 | AK159: 0 | AL159: 0 | AM159: 0 | AN159: 0 | AO159: 0 | AP159: 0 | AQ159: 0 | AR159: 0 | AS159: 0 | AT159: 0 | AU159: 0 | AV159: 0 | AW159: 0 | AX159: 0 | AY159: 0 | AZ159: 0 | BA159: 0 | BB159: 0 | BC159: 0 | BD159: 0 | BE159: 0 | BF159: 0 | BG159: 0 | BH159: 0 | BI159: 0 | BJ159: 0 | BK159: 0 | BL159: 0 | BM159: 0 | BN159: 0 | BO159: 0 | BP159: 0 | BQ159: 0 | BR159: 0 | BS159: 0 | BT159: 0 | BU159: 0 | BV159: =IF(AND($G$26="yes",BV143=$G$25+1),-$G$112*$G$24*$G$30*state_tax_rate*(1-fed_tax_rate),0) -> 0 | BW159: =IF(AND($G$26="yes",BW143=$G$25+1),-$G$112*$G$24*$G$30*state_tax_rate*(1-fed_tax_rate),0) -> 0 | BX159: =IF(AND($G$26="yes",BX143=$G$25+1),-$G$112*$G$24*$G$30*state_tax_rate*(1-fed_tax_rate),0) -> 0
A160: =ROW() -> 160 | B160: Depreciation Tax Shield (1st yr captures bonus depreciation, if any applies) | J160: =IF(AND(J143<$G$21,J143<=COUNTIF($J$145:$BX$145,">0")),-(J145*$G$146+G147)*Tax_Rate,IF(AND(J143<=COUNTIF($J$145:$BX$145,">0"),J143=$G$21),-(SUM($G$146:$G$147)*Tax_Rate+SUM($I$160:I160)),0)) -> -1.844190071 | K160: =IF(AND(K143<$G$21,K143<=COUNTIF($J$145:$BX$145,">0")),-(K145*$G$146+H147)*Tax_Rate,IF(AND(K143<=COUNTIF($J$145:$BX$145,">0"),K143=$G$21),-(SUM($G$146:$G$147)*Tax_Rate+SUM($I$160:J160)),0)) -> -1.732043378 | L160: =IF(AND(L143<$G$21,L143<=COUNTIF($J$145:$BX$145,">0")),-(L145*$G$146+I147)*Tax_Rate,IF(AND(L143<=COUNTIF($J$145:$BX$145,">0"),L143=$G$21),-(SUM($G$146:$G$147)*Tax_Rate+SUM($I$160:K160)),0)) -> -1.60743594 | M160: =IF(AND(M143<$G$21,M143<=COUNTIF($J$145:$BX$145,">0")),-(M145*$G$146+J147)*Tax_Rate,IF(AND(M143<=COUNTIF($J$145:$BX$145,">0"),M143=$G$21),-(SUM($G$146:$G$147)*Tax_Rate+SUM($I$160:L160)),0)) -> -1.482828503 | N160: =IF(AND(N143<$G$21,N143<=COUNTIF($J$145:$BX$145,">0")),-(N145*$G$146+K147)*Tax_Rate,IF(AND(N143<=COUNTIF($J$145:$BX$145,">0"),N143=$G$21),-(SUM($G$146:$G$147)*Tax_Rate+SUM($I$160:M160)),0)) -> -1.37068181 | O160: =IF(AND(O143<$G$21,O143<=COUNTIF($J$145:$BX$145,">0")),-(O145*$G$146+L147)*Tax_Rate,IF(AND(O143<=COUNTIF($J$145:$BX$145,">0"),O143=$G$21),-(SUM($G$146:$G$147)*Tax_Rate+SUM($I$160:N160)),0)) -> -1.27099586 | P160: =IF(AND(P143<$G$21,P143<=COUNTIF($J$145:$BX$145,">0")),-(P145*$G$146+M147)*Tax_Rate,IF(AND(P143<=COUNTIF($J$145:$BX$145,">0"),P143=$G$21),-(SUM($G$146:$G$147)*Tax_Rate+SUM($I$160:O160)),0)) -> -1.17130991 | Q160: =IF(AND(Q143<$G$21,Q143<=COUNTIF($J$145:$BX$145,">0")),-(Q145*$G$146+N147)*Tax_Rate,IF(AND(Q143<=COUNTIF($J$145:$BX$145,">0"),Q143=$G$21),-(SUM($G$146:$G$147)*Tax_Rate+SUM($I$160:P160)),0)) -> -1.121466935 | R160: =IF(AND(R143<$G$21,R143<=COUNTIF($J$145:$BX$145,">0")),-(R145*$G$146+O147)*Tax_Rate,IF(AND(R143<=COUNTIF($J$145:$BX$145,">0"),R143=$G$21),-(SUM($G$146:$G$147)*Tax_Rate+SUM($I$160:Q160)),0)) -> -1.121466935 | S160: =IF(AND(S143<$G$21,S143<=COUNTIF($J$145:$BX$145,">0")),-(S145*$G$146+P147)*Tax_Rate,IF(AND(S143<=COUNTIF($J$145:$BX$145,">0"),S143=$G$21),-(SUM($G$146:$G$147)*Tax_Rate+SUM($I$160:R160)),0)) -> -1.121466935 | T160: =IF(AND(T143<$G$21,T143<=COUNTIF($J$145:$BX$145,">0")),-(T145*$G$146+Q147)*Tax_Rate,IF(AND(T143<=COUNTIF($J$145:$BX$145,">0"),T143=$G$21),-(SUM($G$146:$G$147)*Tax_Rate+SUM($I$160:S160)),0)) -> -1.121466935 | U160: =IF(AND(U143<$G$21,U143<=COUNTIF($J$145:$BX$145,">0")),-(U145*$G$146+R147)*Tax_Rate,IF(AND(U143<=COUNTIF($J$145:$BX$145,">0"),U143=$G$21),-(SUM($G$146:$G$147)*Tax_Rate+SUM($I$160:T160)),0)) -> -1.121466935 | V160: =IF(AND(V143<$G$21,V143<=COUNTIF($J$145:$BX$145,">0")),-(V145*$G$146+S147)*Tax_Rate,IF(AND(V143<=COUNTIF($J$145:$BX$145,">0"),V143=$G$21),-(SUM($G$146:$G$147)*Tax_Rate+SUM($I$160:U160)),0)) -> -1.121466935 | W160: =IF(AND(W143<$G$21,W143<=COUNTIF($J$145:$BX$145,">0")),-(W145*$G$146+T147)*Tax_Rate,IF(AND(W143<=COUNTIF($J$145:$BX$145,">0"),W143=$G$21),-(SUM($G$146:$G$147)*Tax_Rate+SUM($I$160:V160)),0)) -> -1.121466935 | X160: =IF(AND(X143<$G$21,X143<=COUNTIF($J$145:$BX$145,">0")),-(X145*$G$146+U147)*Tax_Rate,IF(AND(X143<=COUNTIF($J$145:$BX$145,">0"),X143=$G$21),-(SUM($G$146:$G$147)*Tax_Rate+SUM($I$160:W160)),0)) -> -1.121466935 | Y160: =IF(AND(Y143<$G$21,Y143<=COUNTIF($J$145:$BX$145,">0")),-(Y145*$G$146+V147)*Tax_Rate,IF(AND(Y143<=COUNTIF($J$145:$BX$145,">0"),Y143=$G$21),-(SUM($G$146:$G$147)*Tax_Rate+SUM($I$160:X160)),0)) -> -1.121466935 | Z160: =IF(AND(Z143<$G$21,Z143<=COUNTIF($J$145:$BX$145,">0")),-(Z145*$G$146+W147)*Tax_Rate,IF(AND(Z143<=COUNTIF($J$145:$BX$145,">0"),Z143=$G$21),-(SUM($G$146:$G$147)*Tax_Rate+SUM($I$160:Y160)),0)) -> -1.121466935 | AA160: =IF(AND(AA143<$G$21,AA143<=COUNTIF($J$145:$BX$145,">0")),-(AA145*$G$146+X147)*Tax_Rate,IF(AND(AA143<=COUNTIF($J$145:$BX$145,">0"),AA143=$G$21),-(SUM($G$146:$G$147)*Tax_Rate+SUM($I$160:Z160)),0)) -> -1.121466935 | AB160: =IF(AND(AB143<$G$21,AB143<=COUNTIF($J$145:$BX$145,">0")),-(AB145*$G$146+Y147)*Tax_Rate,IF(AND(AB143<=COUNTIF($J$145:$BX$145,">0"),AB143=$G$21),-(SUM($G$146:$G$147)*Tax_Rate+SUM($I$160:AA160)),0)) -> -1.121466935 | AC160: =IF(AND(AC143<$G$21,AC143<=COUNTIF($J$145:$BX$145,">0")),-(AC145*$G$146+Z147)*Tax_Rate,IF(AND(AC143<=COUNTIF($J$145:$BX$145,">0"),AC143=$G$21),-(SUM($G$146:$G$147)*Tax_Rate+SUM($I$160:AB160)),0)) -> -0.9843987541 | AD160: =IF(AND(AD143<$G$21,AD143<=COUNTIF($J$145:$BX$145,">0")),-(AD145*$G$146+AA147)*Tax_Rate,IF(AND(AD143<=COUNTIF($J$145:$BX$145,">0"),AD143=$G$21),-(SUM($G$146:$G$147)*Tax_Rate+SUM($I$160:AC160)),0)) -> 0 | AE160: =IF(AND(AE143<$G$21,AE143<=COUNTIF($J$145:$BX$145,">0")),-(AE145*$G$146+AB147)*Tax_Rate,IF(AND(AE143<=COUNTIF($J$145:$BX$145,">0"),AE143=$G$21),-(SUM($G$146:$G$147)*Tax_Rate+SUM($I$160:AD160)),0)) -> 0 | AF160: =IF(AND(AF143<$G$21,AF143<=COUNTIF($J$145:$BX$145,">0")),-(AF145*$G$146+AC147)*Tax_Rate,IF(AND(AF143<=COUNTIF($J$145:$BX$145,">0"),AF143=$G$21),-(SUM($G$146:$G$147)*Tax_Rate+SUM($I$160:AE160)),0)) -> 0 | AG160: =IF(AND(AG143<$G$21,AG143<=COUNTIF($J$145:$BX$145,">0")),-(AG145*$G$146+AD147)*Tax_Rate,IF(AND(AG143<=COUNTIF($J$145:$BX$145,">0"),AG143=$G$21),-(SUM($G$146:$G$147)*Tax_Rate+SUM($I$160:AF160)),0)) -> 0 | AH160: =IF(AND(AH143<$G$21,AH143<=COUNTIF($J$145:$BX$145,">0")),-(AH145*$G$146+AE147)*Tax_Rate,IF(AND(AH143<=COUNTIF($J$145:$BX$145,">0"),AH143=$G$21),-(SUM($G$146:$G$147)*Tax_Rate+SUM($I$160:AG160)),0)) -> 0 | AI160: =IF(AND(AI143<$G$21,AI143<=COUNTIF($J$145:$BX$145,">0")),-(AI145*$G$146+AF147)*Tax_Rate,IF(AND(AI143<=COUNTIF($J$145:$BX$145,">0"),AI143=$G$21),-(SUM($G$146:$G$147)*Tax_Rate+SUM($I$160:AH160)),0)) -> 0 | AJ160: =IF(AND(AJ143<$G$21,AJ143<=COUNTIF($J$145:$BX$145,">0")),-(AJ145*$G$146+AG147)*Tax_Rate,IF(AND(AJ143<=COUNTIF($J$145:$BX$145,">0"),AJ143=$G$21),-(SUM($G$146:$G$147)*Tax_Rate+SUM($I$160:AI160)),0)) -> 0 | AK160: =IF(AND(AK143<$G$21,AK143<=COUNTIF($J$145:$BX$145,">0")),-(AK145*$G$146+AH147)*Tax_Rate,IF(AND(AK143<=COUNTIF($J$145:$BX$145,">0"),AK143=$G$21),-(SUM($G$146:$G$147)*Tax_Rate+SUM($I$160:AJ160)),0)) -> 0 | AL160: =IF(AND(AL143<$G$21,AL143<=COUNTIF($J$145:$BX$145,">0")),-(AL145*$G$146+AI147)*Tax_Rate,IF(AND(AL143<=COUNTIF($J$145:$BX$145,">0"),AL143=$G$21),-(SUM($G$146:$G$147)*Tax_Rate+SUM($I$160:AK160)),0)) -> 0 | AM160: =IF(AND(AM143<$G$21,AM143<=COUNTIF($J$145:$BX$145,">0")),-(AM145*$G$146+AJ147)*Tax_Rate,IF(AND(AM143<=COUNTIF($J$145:$BX$145,">0"),AM143=$G$21),-(SUM($G$146:$G$147)*Tax_Rate+SUM($I$160:AL160)),0)) -> 0 | AN160: =IF(AND(AN143<$G$21,AN143<=COUNTIF($J$145:$BX$145,">0")),-(AN145*$G$146+AK147)*Tax_Rate,IF(AND(AN143<=COUNTIF($J$145:$BX$145,">0"),AN143=$G$21),-(SUM($G$146:$G$147)*Tax_Rate+SUM($I$160:AM160)),0)) -> 0 | AO160: =IF(AND(AO143<$G$21,AO143<=COUNTIF($J$145:$BX$145,">0")),-(AO145*$G$146+AL147)*Tax_Rate,IF(AND(AO143<=COUNTIF($J$145:$BX$145,">0"),AO143=$G$21),-(SUM($G$146:$G$147)*Tax_Rate+SUM($I$160:AN160)),0)) -> 0 | AP160: =IF(AND(AP143<$G$21,AP143<=COUNTIF($J$145:$BX$145,">0")),-(AP145*$G$146+AM147)*Tax_Rate,IF(AND(AP143<=COUNTIF($J$145:$BX$145,">0"),AP143=$G$21),-(SUM($G$146:$G$147)*Tax_Rate+SUM($I$160:AO160)),0)) -> 0 | AQ160: =IF(AND(AQ143<$G$21,AQ143<=COUNTIF($J$145:$BX$145,">0")),-(AQ145*$G$146+AN147)*Tax_Rate,IF(AND(AQ143<=COUNTIF($J$145:$BX$145,">0"),AQ143=$G$21),-(SUM($G$146:$G$147)*Tax_Rate+SUM($I$160:AP160)),0)) -> 0 | AR160: =IF(AND(AR143<$G$21,AR143<=COUNTIF($J$145:$BX$145,">0")),-(AR145*$G$146+AO147)*Tax_Rate,IF(AND(AR143<=COUNTIF($J$145:$BX$145,">0"),AR143=$G$21),-(SUM($G$146:$G$147)*Tax_Rate+SUM($I$160:AQ160)),0)) -> 0 | AS160: =IF(AND(AS143<$G$21,AS143<=COUNTIF($J$145:$BX$145,">0")),-(AS145*$G$146+AP147)*Tax_Rate,IF(AND(AS143<=COUNTIF($J$145:$BX$145,">0"),AS143=$G$21),-(SUM($G$146:$G$147)*Tax_Rate+SUM($I$160:AR160)),0)) -> 0 | AT160: =IF(AND(AT143<$G$21,AT143<=COUNTIF($J$145:$BX$145,">0")),-(AT145*$G$146+AQ147)*Tax_Rate,IF(AND(AT143<=COUNTIF($J$145:$BX$145,">0"),AT143=$G$21),-(SUM($G$146:$G$147)*Tax_Rate+SUM($I$160:AS160)),0)) -> 0 | AU160: =IF(AND(AU143<$G$21,AU143<=COUNTIF($J$145:$BX$145,">0")),-(AU145*$G$146+AR147)*Tax_Rate,IF(AND(AU143<=COUNTIF($J$145:$BX$145,">0"),AU143=$G$21),-(SUM($G$146:$G$147)*Tax_Rate+SUM($I$160:AT160)),0)) -> 0 | AV160: =IF(AND(AV143<$G$21,AV143<=COUNTIF($J$145:$BX$145,">0")),-(AV145*$G$146+AS147)*Tax_Rate,IF(AND(AV143<=COUNTIF($J$145:$BX$145,">0"),AV143=$G$21),-(SUM($G$146:$G$147)*Tax_Rate+SUM($I$160:AU160)),0)) -> 0 | AW160: =IF(AND(AW143<$G$21,AW143<=COUNTIF($J$145:$BX$145,">0")),-(AW145*$G$146+AT147)*Tax_Rate,IF(AND(AW143<=COUNTIF($J$145:$BX$145,">0"),AW143=$G$21),-(SUM($G$146:$G$147)*Tax_Rate+SUM($I$160:AV160)),0)) -> 0 | AX160: =IF(AND(AX143<$G$21,AX143<=COUNTIF($J$145:$BX$145,">0")),-(AX145*$G$146+AU147)*Tax_Rate,IF(AND(AX143<=COUNTIF($J$145:$BX$145,">0"),AX143=$G$21),-(SUM($G$146:$G$147)*Tax_Rate+SUM($I$160:AW160)),0)) -> 0 | AY160: =IF(AND(AY143<$G$21,AY143<=COUNTIF($J$145:$BX$145,">0")),-(AY145*$G$146+AV147)*Tax_Rate,IF(AND(AY143<=COUNTIF($J$145:$BX$145,">0"),AY143=$G$21),-(SUM($G$146:$G$147)*Tax_Rate+SUM($I$160:AX160)),0)) -> 0 | AZ160: =IF(AND(AZ143<$G$21,AZ143<=COUNTIF($J$145:$BX$145,">0")),-(AZ145*$G$146+AW147)*Tax_Rate,IF(AND(AZ143<=COUNTIF($J$145:$BX$145,">0"),AZ143=$G$21),-(SUM($G$146:$G$147)*Tax_Rate+SUM($I$160:AY160)),0)) -> 0 | BA160: =IF(AND(BA143<$G$21,BA143<=COUNTIF($J$145:$BX$145,">0")),-(BA145*$G$146+AX147)*Tax_Rate,IF(AND(BA143<=COUNTIF($J$145:$BX$145,">0"),BA143=$G$21),-(SUM($G$146:$G$147)*Tax_Rate+SUM($I$160:AZ160)),0)) -> 0 | BB160: =IF(AND(BB143<$G$21,BB143<=COUNTIF($J$145:$BX$145,">0")),-(BB145*$G$146+AY147)*Tax_Rate,IF(AND(BB143<=COUNTIF($J$145:$BX$145,">0"),BB143=$G$21),-(SUM($G$146:$G$147)*Tax_Rate+SUM($I$160:BA160)),0)) -> 0 | BC160: =IF(AND(BC143<$G$21,BC143<=COUNTIF($J$145:$BX$145,">0")),-(BC145*$G$146+AZ147)*Tax_Rate,IF(AND(BC143<=COUNTIF($J$145:$BX$145,">0"),BC143=$G$21),-(SUM($G$146:$G$147)*Tax_Rate+SUM($I$160:BB160)),0)) -> 0 | BD160: =IF(AND(BD143<$G$21,BD143<=COUNTIF($J$145:$BX$145,">0")),-(BD145*$G$146+BA147)*Tax_Rate,IF(AND(BD143<=COUNTIF($J$145:$BX$145,">0"),BD143=$G$21),-(SUM($G$146:$G$147)*Tax_Rate+SUM($I$160:BC160)),0)) -> 0 | BE160: =IF(AND(BE143<$G$21,BE143<=COUNTIF($J$145:$BX$145,">0")),-(BE145*$G$146+BB147)*Tax_Rate,IF(AND(BE143<=COUNTIF($J$145:$BX$145,">0"),BE143=$G$21),-(SUM($G$146:$G$147)*Tax_Rate+SUM($I$160:BD160)),0)) -> 0 | BF160: =IF(AND(BF143<$G$21,BF143<=COUNTIF($J$145:$BX$145,">0")),-(BF145*$G$146+BC147)*Tax_Rate,IF(AND(BF143<=COUNTIF($J$145:$BX$145,">0"),BF143=$G$21),-(SUM($G$146:$G$147)*Tax_Rate+SUM($I$160:BE160)),0)) -> 0 | BG160: =IF(AND(BG143<$G$21,BG143<=COUNTIF($J$145:$BX$145,">0")),-(BG145*$G$146+BD147)*Tax_Rate,IF(AND(BG143<=COUNTIF($J$145:$BX$145,">0"),BG143=$G$21),-(SUM($G$146:$G$147)*Tax_Rate+SUM($I$160:BF160)),0)) -> 0 | BH160: =IF(AND(BH143<$G$21,BH143<=COUNTIF($J$145:$BX$145,">0")),-(BH145*$G$146+BE147)*Tax_Rate,IF(AND(BH143<=COUNTIF($J$145:$BX$145,">0"),BH143=$G$21),-(SUM($G$146:$G$147)*Tax_Rate+SUM($I$160:BG160)),0)) -> 0 | BI160: =IF(AND(BI143<$G$21,BI143<=COUNTIF($J$145:$BX$145,">0")),-(BI145*$G$146+BF147)*Tax_Rate,IF(AND(BI143<=COUNTIF($J$145:$BX$145,">0"),BI143=$G$21),-(SUM($G$146:$G$147)*Tax_Rate+SUM($I$160:BH160)),0)) -> 0 | BJ160: =IF(AND(BJ143<$G$21,BJ143<=COUNTIF($J$145:$BX$145,">0")),-(BJ145*$G$146+BG147)*Tax_Rate,IF(AND(BJ143<=COUNTIF($J$145:$BX$145,">0"),BJ143=$G$21),-(SUM($G$146:$G$147)*Tax_Rate+SUM($I$160:BI160)),0)) -> 0 | BK160: =IF(AND(BK143<$G$21,BK143<=COUNTIF($J$145:$BX$145,">0")),-(BK145*$G$146+BH147)*Tax_Rate,IF(AND(BK143<=COUNTIF($J$145:$BX$145,">0"),BK143=$G$21),-(SUM($G$146:$G$147)*Tax_Rate+SUM($I$160:BJ160)),0)) -> 0 | BL160: =IF(AND(BL143<$G$21,BL143<=COUNTIF($J$145:$BX$145,">0")),-(BL145*$G$146+BI147)*Tax_Rate,IF(AND(BL143<=COUNTIF($J$145:$BX$145,">0"),BL143=$G$21),-(SUM($G$146:$G$147)*Tax_Rate+SUM($I$160:BK160)),0)) -> 0 | BM160: =IF(AND(BM143<$G$21,BM143<=COUNTIF($J$145:$BX$145,">0")),-(BM145*$G$146+BJ147)*Tax_Rate,IF(AND(BM143<=COUNTIF($J$145:$BX$145,">0"),BM143=$G$21),-(SUM($G$146:$G$147)*Tax_Rate+SUM($I$160:BL160)),0)) -> 0 | BN160: =IF(AND(BN143<$G$21,BN143<=COUNTIF($J$145:$BX$145,">0")),-(BN145*$G$146+BK147)*Tax_Rate,IF(AND(BN143<=COUNTIF($J$145:$BX$145,">0"),BN143=$G$21),-(SUM($G$146:$G$147)*Tax_Rate+SUM($I$160:BM160)),0)) -> 0 | BO160: =IF(AND(BO143<$G$21,BO143<=COUNTIF($J$145:$BX$145,">0")),-(BO145*$G$146+BL147)*Tax_Rate,IF(AND(BO143<=COUNTIF($J$145:$BX$145,">0"),BO143=$G$21),-(SUM($G$146:$G$147)*Tax_Rate+SUM($I$160:BN160)),0)) -> 0 | BP160: =IF(AND(BP143<$G$21,BP143<=COUNTIF($J$145:$BX$145,">0")),-(BP145*$G$146+BM147)*Tax_Rate,IF(AND(BP143<=COUNTIF($J$145:$BX$145,">0"),BP143=$G$21),-(SUM($G$146:$G$147)*Tax_Rate+SUM($I$160:BO160)),0)) -> 0 | BQ160: =IF(AND(BQ143<$G$21,BQ143<=COUNTIF($J$145:$BX$145,">0")),-(BQ145*$G$146+BN147)*Tax_Rate,IF(AND(BQ143<=COUNTIF($J$145:$BX$145,">0"),BQ143=$G$21),-(SUM($G$146:$G$147)*Tax_Rate+SUM($I$160:BP160)),0)) -> 0 | BR160: =IF(AND(BR143<$G$21,BR143<=COUNTIF($J$145:$BX$145,">0")),-(BR145*$G$146+BO147)*Tax_Rate,IF(AND(BR143<=COUNTIF($J$145:$BX$145,">0"),BR143=$G$21),-(SUM($G$146:$G$147)*Tax_Rate+SUM($I$160:BQ160)),0)) -> 0 | BS160: =IF(AND(BS143<$G$21,BS143<=COUNTIF($J$145:$BX$145,">0")),-(BS145*$G$146+BP147)*Tax_Rate,IF(AND(BS143<=COUNTIF($J$145:$BX$145,">0"),BS143=$G$21),-(SUM($G$146:$G$147)*Tax_Rate+SUM($I$160:BR160)),0)) -> 0 | BT160: =IF(AND(BT143<$G$21,BT143<=COUNTIF($J$145:$BX$145,">0")),-(BT145*$G$146+BQ147)*Tax_Rate,IF(AND(BT143<=COUNTIF($J$145:$BX$145,">0"),BT143=$G$21),-(SUM($G$146:$G$147)*Tax_Rate+SUM($I$160:BS160)),0)) -> 0 | BU160: =IF(AND(BU143<$G$21,BU143<=COUNTIF($J$145:$BX$145,">0")),-(BU145*$G$146+BR147)*Tax_Rate,IF(AND(BU143<=COUNTIF($J$145:$BX$145,">0"),BU143=$G$21),-(SUM($G$146:$G$147)*Tax_Rate+SUM($I$160:BT160)),0)) -> 0 | BV160: =IF(AND(BV143<$G$21,BV143<=COUNTIF($J$145:$BX$145,">0")),-(BV145*$G$146+BS147)*Tax_Rate,IF(AND(BV143<=COUNTIF($J$145:$BX$145,">0"),BV143=$G$21),-(SUM($G$146:$G$147)*Tax_Rate+SUM($I$160:BU160)),0)) -> 0 | BW160: =IF(AND(BW143<$G$21,BW143<=COUNTIF($J$145:$BX$145,">0")),-(BW145*$G$146+BT147)*Tax_Rate,IF(AND(BW143<=COUNTIF($J$145:$BX$145,">0"),BW143=$G$21),-(SUM($G$146:$G$147)*Tax_Rate+SUM($I$160:BV160)),0)) -> 0 | BX160: =IF(AND(BX143<$G$21,BX143<=COUNTIF($J$145:$BX$145,">0")),-(BX145*$G$146+BU147)*Tax_Rate,IF(AND(BX143<=COUNTIF($J$145:$BX$145,">0"),BX143=$G$21),-(SUM($G$146:$G$147)*Tax_Rate+SUM($I$160:BW160)),0)) -> 0
A161: =ROW() -> 161 | B161: Interest Tax Shield | J161: =IF(AND(J143<$G$21,J143<=COUNTIF($J$145:$BX$145,">0")),-(J145*$G$131)*Tax_Rate,IF(AND(J143<=COUNTIF($J$145:$BX$145,">0"),J143=$G$21),-($G$131*Tax_Rate+SUM($I161:I161)),0)) -> -0.05600873549 | K161: =IF(AND(K143<$G$21,K143<=COUNTIF($J$145:$BX$145,">0")),-(K145*$G$131)*Tax_Rate,IF(AND(K143<=COUNTIF($J$145:$BX$145,">0"),K143=$G$21),-($G$131*Tax_Rate+SUM($I161:J161)),0)) -> -0.05260279887 | L161: =IF(AND(L143<$G$21,L143<=COUNTIF($J$145:$BX$145,">0")),-(L145*$G$131)*Tax_Rate,IF(AND(L143<=COUNTIF($J$145:$BX$145,">0"),L143=$G$21),-($G$131*Tax_Rate+SUM($I161:K161)),0)) -> -0.04881842485 | M161: =IF(AND(M143<$G$21,M143<=COUNTIF($J$145:$BX$145,">0")),-(M145*$G$131)*Tax_Rate,IF(AND(M143<=COUNTIF($J$145:$BX$145,">0"),M143=$G$21),-($G$131*Tax_Rate+SUM($I161:L161)),0)) -> -0.04503405083 | N161: =IF(AND(N143<$G$21,N143<=COUNTIF($J$145:$BX$145,">0")),-(N145*$G$131)*Tax_Rate,IF(AND(N143<=COUNTIF($J$145:$BX$145,">0"),N143=$G$21),-($G$131*Tax_Rate+SUM($I161:M161)),0)) -> -0.04162811422 | O161: =IF(AND(O143<$G$21,O143<=COUNTIF($J$145:$BX$145,">0")),-(O145*$G$131)*Tax_Rate,IF(AND(O143<=COUNTIF($J$145:$BX$145,">0"),O143=$G$21),-($G$131*Tax_Rate+SUM($I161:N161)),0)) -> -0.038600615 | P161: =IF(AND(P143<$G$21,P143<=COUNTIF($J$145:$BX$145,">0")),-(P145*$G$131)*Tax_Rate,IF(AND(P143<=COUNTIF($J$145:$BX$145,">0"),P143=$G$21),-($G$131*Tax_Rate+SUM($I161:O161)),0)) -> -0.03557311578 | Q161: =IF(AND(Q143<$G$21,Q143<=COUNTIF($J$145:$BX$145,">0")),-(Q145*$G$131)*Tax_Rate,IF(AND(Q143<=COUNTIF($J$145:$BX$145,">0"),Q143=$G$21),-($G$131*Tax_Rate+SUM($I161:P161)),0)) -> -0.03405936618 | R161: =IF(AND(R143<$G$21,R143<=COUNTIF($J$145:$BX$145,">0")),-(R145*$G$131)*Tax_Rate,IF(AND(R143<=COUNTIF($J$145:$BX$145,">0"),R143=$G$21),-($G$131*Tax_Rate+SUM($I161:Q161)),0)) -> -0.03405936618 | S161: =IF(AND(S143<$G$21,S143<=COUNTIF($J$145:$BX$145,">0")),-(S145*$G$131)*Tax_Rate,IF(AND(S143<=COUNTIF($J$145:$BX$145,">0"),S143=$G$21),-($G$131*Tax_Rate+SUM($I161:R161)),0)) -> -0.03405936618 | T161: =IF(AND(T143<$G$21,T143<=COUNTIF($J$145:$BX$145,">0")),-(T145*$G$131)*Tax_Rate,IF(AND(T143<=COUNTIF($J$145:$BX$145,">0"),T143=$G$21),-($G$131*Tax_Rate+SUM($I161:S161)),0)) -> -0.03405936618 | U161: =IF(AND(U143<$G$21,U143<=COUNTIF($J$145:$BX$145,">0")),-(U145*$G$131)*Tax_Rate,IF(AND(U143<=COUNTIF($J$145:$BX$145,">0"),U143=$G$21),-($G$131*Tax_Rate+SUM($I161:T161)),0)) -> -0.03405936618 | V161: =IF(AND(V143<$G$21,V143<=COUNTIF($J$145:$BX$145,">0")),-(V145*$G$131)*Tax_Rate,IF(AND(V143<=COUNTIF($J$145:$BX$145,">0"),V143=$G$21),-($G$131*Tax_Rate+SUM($I161:U161)),0)) -> -0.03405936618 | W161: =IF(AND(W143<$G$21,W143<=COUNTIF($J$145:$BX$145,">0")),-(W145*$G$131)*Tax_Rate,IF(AND(W143<=COUNTIF($J$145:$BX$145,">0"),W143=$G$21),-($G$131*Tax_Rate+SUM($I161:V161)),0)) -> -0.03405936618 | X161: =IF(AND(X143<$G$21,X143<=COUNTIF($J$145:$BX$145,">0")),-(X145*$G$131)*Tax_Rate,IF(AND(X143<=COUNTIF($J$145:$BX$145,">0"),X143=$G$21),-($G$131*Tax_Rate+SUM($I161:W161)),0)) -> -0.03405936618 | Y161: =IF(AND(Y143<$G$21,Y143<=COUNTIF($J$145:$BX$145,">0")),-(Y145*$G$131)*Tax_Rate,IF(AND(Y143<=COUNTIF($J$145:$BX$145,">0"),Y143=$G$21),-($G$131*Tax_Rate+SUM($I161:X161)),0)) -> -0.03405936618 | Z161: =IF(AND(Z143<$G$21,Z143<=COUNTIF($J$145:$BX$145,">0")),-(Z145*$G$131)*Tax_Rate,IF(AND(Z143<=COUNTIF($J$145:$BX$145,">0"),Z143=$G$21),-($G$131*Tax_Rate+SUM($I161:Y161)),0)) -> -0.03405936618 | AA161: =IF(AND(AA143<$G$21,AA143<=COUNTIF($J$145:$BX$145,">0")),-(AA145*$G$131)*Tax_Rate,IF(AND(AA143<=COUNTIF($J$145:$BX$145,">0"),AA143=$G$21),-($G$131*Tax_Rate+SUM($I161:Z161)),0)) -> -0.03405936618 | AB161: =IF(AND(AB143<$G$21,AB143<=COUNTIF($J$145:$BX$145,">0")),-(AB145*$G$131)*Tax_Rate,IF(AND(AB143<=COUNTIF($J$145:$BX$145,">0"),AB143=$G$21),-($G$131*Tax_Rate+SUM($I161:AA161)),0)) -> -0.03405936618 | AC161: =IF(AND(AC143<$G$21,AC143<=COUNTIF($J$145:$BX$145,">0")),-(AC145*$G$131)*Tax_Rate,IF(AND(AC143<=COUNTIF($J$145:$BX$145,">0"),AC143=$G$21),-($G$131*Tax_Rate+SUM($I161:AB161)),0)) -> -0.02989655476 | AD161: =IF(AND(AD143<$G$21,AD143<=COUNTIF($J$145:$BX$145,">0")),-(AD145*$G$131)*Tax_Rate,IF(AND(AD143<=COUNTIF($J$145:$BX$145,">0"),AD143=$G$21),-($G$131*Tax_Rate+SUM($I161:AC161)),0)) -> 0 | AE161: =IF(AND(AE143<$G$21,AE143<=COUNTIF($J$145:$BX$145,">0")),-(AE145*$G$131)*Tax_Rate,IF(AND(AE143<=COUNTIF($J$145:$BX$145,">0"),AE143=$G$21),-($G$131*Tax_Rate+SUM($I161:AD161)),0)) -> 0 | AF161: =IF(AND(AF143<$G$21,AF143<=COUNTIF($J$145:$BX$145,">0")),-(AF145*$G$131)*Tax_Rate,IF(AND(AF143<=COUNTIF($J$145:$BX$145,">0"),AF143=$G$21),-($G$131*Tax_Rate+SUM($I161:AE161)),0)) -> 0 | AG161: =IF(AND(AG143<$G$21,AG143<=COUNTIF($J$145:$BX$145,">0")),-(AG145*$G$131)*Tax_Rate,IF(AND(AG143<=COUNTIF($J$145:$BX$145,">0"),AG143=$G$21),-($G$131*Tax_Rate+SUM($I161:AF161)),0)) -> 0 | AH161: =IF(AND(AH143<$G$21,AH143<=COUNTIF($J$145:$BX$145,">0")),-(AH145*$G$131)*Tax_Rate,IF(AND(AH143<=COUNTIF($J$145:$BX$145,">0"),AH143=$G$21),-($G$131*Tax_Rate+SUM($I161:AG161)),0)) -> 0 | AI161: =IF(AND(AI143<$G$21,AI143<=COUNTIF($J$145:$BX$145,">0")),-(AI145*$G$131)*Tax_Rate,IF(AND(AI143<=COUNTIF($J$145:$BX$145,">0"),AI143=$G$21),-($G$131*Tax_Rate+SUM($I161:AH161)),0)) -> 0 | AJ161: =IF(AND(AJ143<$G$21,AJ143<=COUNTIF($J$145:$BX$145,">0")),-(AJ145*$G$131)*Tax_Rate,IF(AND(AJ143<=COUNTIF($J$145:$BX$145,">0"),AJ143=$G$21),-($G$131*Tax_Rate+SUM($I161:AI161)),0)) -> 0 | AK161: =IF(AND(AK143<$G$21,AK143<=COUNTIF($J$145:$BX$145,">0")),-(AK145*$G$131)*Tax_Rate,IF(AND(AK143<=COUNTIF($J$145:$BX$145,">0"),AK143=$G$21),-($G$131*Tax_Rate+SUM($I161:AJ161)),0)) -> 0 | AL161: =IF(AND(AL143<$G$21,AL143<=COUNTIF($J$145:$BX$145,">0")),-(AL145*$G$131)*Tax_Rate,IF(AND(AL143<=COUNTIF($J$145:$BX$145,">0"),AL143=$G$21),-($G$131*Tax_Rate+SUM($I161:AK161)),0)) -> 0 | AM161: =IF(AND(AM143<$G$21,AM143<=COUNTIF($J$145:$BX$145,">0")),-(AM145*$G$131)*Tax_Rate,IF(AND(AM143<=COUNTIF($J$145:$BX$145,">0"),AM143=$G$21),-($G$131*Tax_Rate+SUM($I161:AL161)),0)) -> 0 | AN161: =IF(AND(AN143<$G$21,AN143<=COUNTIF($J$145:$BX$145,">0")),-(AN145*$G$131)*Tax_Rate,IF(AND(AN143<=COUNTIF($J$145:$BX$145,">0"),AN143=$G$21),-($G$131*Tax_Rate+SUM($I161:AM161)),0)) -> 0 | AO161: =IF(AND(AO143<$G$21,AO143<=COUNTIF($J$145:$BX$145,">0")),-(AO145*$G$131)*Tax_Rate,IF(AND(AO143<=COUNTIF($J$145:$BX$145,">0"),AO143=$G$21),-($G$131*Tax_Rate+SUM($I161:AN161)),0)) -> 0 | AP161: =IF(AND(AP143<$G$21,AP143<=COUNTIF($J$145:$BX$145,">0")),-(AP145*$G$131)*Tax_Rate,IF(AND(AP143<=COUNTIF($J$145:$BX$145,">0"),AP143=$G$21),-($G$131*Tax_Rate+SUM($I161:AO161)),0)) -> 0 | AQ161: =IF(AND(AQ143<$G$21,AQ143<=COUNTIF($J$145:$BX$145,">0")),-(AQ145*$G$131)*Tax_Rate,IF(AND(AQ143<=COUNTIF($J$145:$BX$145,">0"),AQ143=$G$21),-($G$131*Tax_Rate+SUM($I161:AP161)),0)) -> 0 | AR161: =IF(AND(AR143<$G$21,AR143<=COUNTIF($J$145:$BX$145,">0")),-(AR145*$G$131)*Tax_Rate,IF(AND(AR143<=COUNTIF($J$145:$BX$145,">0"),AR143=$G$21),-($G$131*Tax_Rate+SUM($I161:AQ161)),0)) -> 0 | AS161: =IF(AND(AS143<$G$21,AS143<=COUNTIF($J$145:$BX$145,">0")),-(AS145*$G$131)*Tax_Rate,IF(AND(AS143<=COUNTIF($J$145:$BX$145,">0"),AS143=$G$21),-($G$131*Tax_Rate+SUM($I161:AR161)),0)) -> 0 | AT161: =IF(AND(AT143<$G$21,AT143<=COUNTIF($J$145:$BX$145,">0")),-(AT145*$G$131)*Tax_Rate,IF(AND(AT143<=COUNTIF($J$145:$BX$145,">0"),AT143=$G$21),-($G$131*Tax_Rate+SUM($I161:AS161)),0)) -> 0 | AU161: =IF(AND(AU143<$G$21,AU143<=COUNTIF($J$145:$BX$145,">0")),-(AU145*$G$131)*Tax_Rate,IF(AND(AU143<=COUNTIF($J$145:$BX$145,">0"),AU143=$G$21),-($G$131*Tax_Rate+SUM($I161:AT161)),0)) -> 0 | AV161: =IF(AND(AV143<$G$21,AV143<=COUNTIF($J$145:$BX$145,">0")),-(AV145*$G$131)*Tax_Rate,IF(AND(AV143<=COUNTIF($J$145:$BX$145,">0"),AV143=$G$21),-($G$131*Tax_Rate+SUM($I161:AU161)),0)) -> 0 | AW161: =IF(AND(AW143<$G$21,AW143<=COUNTIF($J$145:$BX$145,">0")),-(AW145*$G$131)*Tax_Rate,IF(AND(AW143<=COUNTIF($J$145:$BX$145,">0"),AW143=$G$21),-($G$131*Tax_Rate+SUM($I161:AV161)),0)) -> 0 | AX161: =IF(AND(AX143<$G$21,AX143<=COUNTIF($J$145:$BX$145,">0")),-(AX145*$G$131)*Tax_Rate,IF(AND(AX143<=COUNTIF($J$145:$BX$145,">0"),AX143=$G$21),-($G$131*Tax_Rate+SUM($I161:AW161)),0)) -> 0 | AY161: =IF(AND(AY143<$G$21,AY143<=COUNTIF($J$145:$BX$145,">0")),-(AY145*$G$131)*Tax_Rate,IF(AND(AY143<=COUNTIF($J$145:$BX$145,">0"),AY143=$G$21),-($G$131*Tax_Rate+SUM($I161:AX161)),0)) -> 0 | AZ161: =IF(AND(AZ143<$G$21,AZ143<=COUNTIF($J$145:$BX$145,">0")),-(AZ145*$G$131)*Tax_Rate,IF(AND(AZ143<=COUNTIF($J$145:$BX$145,">0"),AZ143=$G$21),-($G$131*Tax_Rate+SUM($I161:AY161)),0)) -> 0 | BA161: =IF(AND(BA143<$G$21,BA143<=COUNTIF($J$145:$BX$145,">0")),-(BA145*$G$131)*Tax_Rate,IF(AND(BA143<=COUNTIF($J$145:$BX$145,">0"),BA143=$G$21),-($G$131*Tax_Rate+SUM($I161:AZ161)),0)) -> 0 | BB161: =IF(AND(BB143<$G$21,BB143<=COUNTIF($J$145:$BX$145,">0")),-(BB145*$G$131)*Tax_Rate,IF(AND(BB143<=COUNTIF($J$145:$BX$145,">0"),BB143=$G$21),-($G$131*Tax_Rate+SUM($I161:BA161)),0)) -> 0 | BC161: =IF(AND(BC143<$G$21,BC143<=COUNTIF($J$145:$BX$145,">0")),-(BC145*$G$131)*Tax_Rate,IF(AND(BC143<=COUNTIF($J$145:$BX$145,">0"),BC143=$G$21),-($G$131*Tax_Rate+SUM($I161:BB161)),0)) -> 0 | BD161: =IF(AND(BD143<$G$21,BD143<=COUNTIF($J$145:$BX$145,">0")),-(BD145*$G$131)*Tax_Rate,IF(AND(BD143<=COUNTIF($J$145:$BX$145,">0"),BD143=$G$21),-($G$131*Tax_Rate+SUM($I161:BC161)),0)) -> 0 | BE161: =IF(AND(BE143<$G$21,BE143<=COUNTIF($J$145:$BX$145,">0")),-(BE145*$G$131)*Tax_Rate,IF(AND(BE143<=COUNTIF($J$145:$BX$145,">0"),BE143=$G$21),-($G$131*Tax_Rate+SUM($I161:BD161)),0)) -> 0 | BF161: =IF(AND(BF143<$G$21,BF143<=COUNTIF($J$145:$BX$145,">0")),-(BF145*$G$131)*Tax_Rate,IF(AND(BF143<=COUNTIF($J$145:$BX$145,">0"),BF143=$G$21),-($G$131*Tax_Rate+SUM($I161:BE161)),0)) -> 0 | BG161: =IF(AND(BG143<$G$21,BG143<=COUNTIF($J$145:$BX$145,">0")),-(BG145*$G$131)*Tax_Rate,IF(AND(BG143<=COUNTIF($J$145:$BX$145,">0"),BG143=$G$21),-($G$131*Tax_Rate+SUM($I161:BF161)),0)) -> 0 | BH161: =IF(AND(BH143<$G$21,BH143<=COUNTIF($J$145:$BX$145,">0")),-(BH145*$G$131)*Tax_Rate,IF(AND(BH143<=COUNTIF($J$145:$BX$145,">0"),BH143=$G$21),-($G$131*Tax_Rate+SUM($I161:BG161)),0)) -> 0 | BI161: =IF(AND(BI143<$G$21,BI143<=COUNTIF($J$145:$BX$145,">0")),-(BI145*$G$131)*Tax_Rate,IF(AND(BI143<=COUNTIF($J$145:$BX$145,">0"),BI143=$G$21),-($G$131*Tax_Rate+SUM($I161:BH161)),0)) -> 0 | BJ161: =IF(AND(BJ143<$G$21,BJ143<=COUNTIF($J$145:$BX$145,">0")),-(BJ145*$G$131)*Tax_Rate,IF(AND(BJ143<=COUNTIF($J$145:$BX$145,">0"),BJ143=$G$21),-($G$131*Tax_Rate+SUM($I161:BI161)),0)) -> 0 | BK161: =IF(AND(BK143<$G$21,BK143<=COUNTIF($J$145:$BX$145,">0")),-(BK145*$G$131)*Tax_Rate,IF(AND(BK143<=COUNTIF($J$145:$BX$145,">0"),BK143=$G$21),-($G$131*Tax_Rate+SUM($I161:BJ161)),0)) -> 0 | BL161: =IF(AND(BL143<$G$21,BL143<=COUNTIF($J$145:$BX$145,">0")),-(BL145*$G$131)*Tax_Rate,IF(AND(BL143<=COUNTIF($J$145:$BX$145,">0"),BL143=$G$21),-($G$131*Tax_Rate+SUM($I161:BK161)),0)) -> 0 | BM161: =IF(AND(BM143<$G$21,BM143<=COUNTIF($J$145:$BX$145,">0")),-(BM145*$G$131)*Tax_Rate,IF(AND(BM143<=COUNTIF($J$145:$BX$145,">0"),BM143=$G$21),-($G$131*Tax_Rate+SUM($I161:BL161)),0)) -> 0 | BN161: =IF(AND(BN143<$G$21,BN143<=COUNTIF($J$145:$BX$145,">0")),-(BN145*$G$131)*Tax_Rate,IF(AND(BN143<=COUNTIF($J$145:$BX$145,">0"),BN143=$G$21),-($G$131*Tax_Rate+SUM($I161:BM161)),0)) -> 0 | BO161: =IF(AND(BO143<$G$21,BO143<=COUNTIF($J$145:$BX$145,">0")),-(BO145*$G$131)*Tax_Rate,IF(AND(BO143<=COUNTIF($J$145:$BX$145,">0"),BO143=$G$21),-($G$131*Tax_Rate+SUM($I161:BN161)),0)) -> 0 | BP161: =IF(AND(BP143<$G$21,BP143<=COUNTIF($J$145:$BX$145,">0")),-(BP145*$G$131)*Tax_Rate,IF(AND(BP143<=COUNTIF($J$145:$BX$145,">0"),BP143=$G$21),-($G$131*Tax_Rate+SUM($I161:BO161)),0)) -> 0 | BQ161: =IF(AND(BQ143<$G$21,BQ143<=COUNTIF($J$145:$BX$145,">0")),-(BQ145*$G$131)*Tax_Rate,IF(AND(BQ143<=COUNTIF($J$145:$BX$145,">0"),BQ143=$G$21),-($G$131*Tax_Rate+SUM($I161:BP161)),0)) -> 0 | BR161: =IF(AND(BR143<$G$21,BR143<=COUNTIF($J$145:$BX$145,">0")),-(BR145*$G$131)*Tax_Rate,IF(AND(BR143<=COUNTIF($J$145:$BX$145,">0"),BR143=$G$21),-($G$131*Tax_Rate+SUM($I161:BQ161)),0)) -> 0 | BS161: =IF(AND(BS143<$G$21,BS143<=COUNTIF($J$145:$BX$145,">0")),-(BS145*$G$131)*Tax_Rate,IF(AND(BS143<=COUNTIF($J$145:$BX$145,">0"),BS143=$G$21),-($G$131*Tax_Rate+SUM($I161:BR161)),0)) -> 0 | BT161: =IF(AND(BT143<$G$21,BT143<=COUNTIF($J$145:$BX$145,">0")),-(BT145*$G$131)*Tax_Rate,IF(AND(BT143<=COUNTIF($J$145:$BX$145,">0"),BT143=$G$21),-($G$131*Tax_Rate+SUM($I161:BS161)),0)) -> 0 | BU161: =IF(AND(BU143<$G$21,BU143<=COUNTIF($J$145:$BX$145,">0")),-(BU145*$G$131)*Tax_Rate,IF(AND(BU143<=COUNTIF($J$145:$BX$145,">0"),BU143=$G$21),-($G$131*Tax_Rate+SUM($I161:BT161)),0)) -> 0 | BV161: =IF(AND(BV143<$G$21,BV143<=COUNTIF($J$145:$BX$145,">0")),-(BV145*$G$131)*Tax_Rate,IF(AND(BV143<=COUNTIF($J$145:$BX$145,">0"),BV143=$G$21),-($G$131*Tax_Rate+SUM($I161:BU161)),0)) -> 0 | BW161: =IF(AND(BW143<$G$21,BW143<=COUNTIF($J$145:$BX$145,">0")),-(BW145*$G$131)*Tax_Rate,IF(AND(BW143<=COUNTIF($J$145:$BX$145,">0"),BW143=$G$21),-($G$131*Tax_Rate+SUM($I161:BV161)),0)) -> 0 | BX161: =IF(AND(BX143<$G$21,BX143<=COUNTIF($J$145:$BX$145,">0")),-(BX145*$G$131)*Tax_Rate,IF(AND(BX143<=COUNTIF($J$145:$BX$145,">0"),BX143=$G$21),-($G$131*Tax_Rate+SUM($I161:BW161)),0)) -> 0
A162: =ROW() -> 162 | B162: Salvage Value (or Site Restoration Cost) | J162: =-J148*(1-Tax_Rate) -> 0 | K162: 0 | L162: 0 | M162: 0 | N162: 0 | O162: 0 | P162: 0 | Q162: 0 | R162: 0 | S162: 0 | T162: 0 | U162: 0 | V162: 0 | W162: 0 | X162: 0 | Y162: 0 | Z162: 0 | AA162: 0 | AB162: 0 | AC162: 0 | AD162: 0 | AE162: 0 | AF162: 0 | AG162: 0 | AH162: 0 | AI162: 0 | AJ162: 0 | AK162: 0 | AL162: 0 | AM162: 0 | AN162: 0 | AO162: 0 | AP162: 0 | AQ162: 0 | AR162: 0 | AS162: 0 | AT162: 0 | AU162: 0 | AV162: 0 | AW162: 0 | AX162: 0 | AY162: 0 | AZ162: 0 | BA162: 0 | BB162: 0 | BC162: 0 | BD162: 0 | BE162: 0 | BF162: 0 | BG162: 0 | BH162: 15.61251861 | BI162: 0 | BJ162: 0 | BK162: 0 | BL162: 0 | BM162: 0 | BN162: 0 | BO162: 0 | BP162: 0 | BQ162: 0 | BR162: 0 | BS162: 0 | BT162: 0 | BU162: 0 | BV162: =-BV148*(1-Tax_Rate) -> 0 | BW162: =-BW148*(1-Tax_Rate) -> 0 | BX162: =-BX148*(1-Tax_Rate) -> 0
A163: =ROW() -> 163 | B163: Nuclear Decommissioning Cost | J163: =J149*(1-Tax_Rate) -> 0 | K163: 0 | L163: 0 | M163: 0 | N163: 0 | O163: 0 | P163: 0 | Q163: 0 | R163: 0 | S163: 0 | T163: 0 | U163: 0 | V163: 0 | W163: 0 | X163: 0 | Y163: 0 | Z163: 0 | AA163: 0 | AB163: 0 | AC163: 0 | AD163: 0 | AE163: 0 | AF163: 0 | AG163: 0 | AH163: 0 | AI163: 0 | AJ163: 0 | AK163: 0 | AL163: 0 | AM163: 0 | AN163: 0 | AO163: 0 | AP163: 0 | AQ163: 0 | AR163: 0 | AS163: 0 | AT163: 0 | AU163: 0 | AV163: 0 | AW163: 0 | AX163: 0 | AY163: 0 | AZ163: 0 | BA163: 0 | BB163: 0 | BC163: 0 | BD163: 0 | BE163: 0 | BF163: 0 | BG163: 0 | BH163: 0 | BI163: 0 | BJ163: 0 | BK163: 0 | BL163: 0 | BM163: 0 | BN163: 0 | BO163: 0 | BP163: 0 | BQ163: 0 | BR163: 0 | BS163: 0 | BT163: 0 | BU163: 0 | BV163: =BV149*(1-Tax_Rate) -> 0 | BW163: =BW149*(1-Tax_Rate) -> 0 | BX163: =BX149*(1-Tax_Rate) -> 0
A164: =ROW() -> 164
A165: =ROW() -> 165
A166: =ROW() -> 166
A167: =ROW() -> 167 | B167: Property Tax (if Nuclear case, may be fixed input) | J167: =J150*(1-Tax_Rate) -> 0.7975436965 | K167: 0.7819055848 | L167: 0.7662674731 | M167: 0.7506293614 | N167: 0.7349912497 | O167: 0.719353138 | P167: 0.7037150263 | Q167: 0.6880769146 | R167: 0.6724388029 | S167: 0.6568006912 | T167: 0.6411625795 | U167: 0.6255244678 | V167: 0.6098863561 | W167: 0.5942482444 | X167: 0.5786101327 | Y167: 0.562972021 | Z167: 0.5473339093 | AA167: 0.5316957976 | AB167: 0.5160576859 | AC167: 0.5004195743 | AD167: 0.4847814626 | AE167: 0.4691433509 | AF167: 0.4535052392 | AG167: 0.4378671275 | AH167: 0.4222290158 | AI167: 0.4065909041 | AJ167: 0.3909527924 | AK167: 0.3753146807 | AL167: 0.359676569 | AM167: 0.3440384573 | AN167: 0.3284003456 | AO167: 0.3127622339 | AP167: 0.2971241222 | AQ167: 0.2814860105 | AR167: 0.2658478988 | AS167: 0.2502097871 | AT167: 0.2345716754 | AU167: 0.2189335637 | AV167: 0.203295452 | AW167: 0.1876573403 | AX167: 0.1720192286 | AY167: 0.156381117 | AZ167: 0.1407430053 | BA167: 0.1251048936 | BB167: 0.1094667819 | BC167: 0.09382867017 | BD167: 0.07819055848 | BE167: 0.06255244678 | BF167: 0.04691433509 | BG167: 0.03127622339 | BH167: 0.0156381117 | BI167: 0 | BJ167: 0 | BK167: 0 | BL167: 0 | BM167: 0 | BN167: 0 | BO167: 0 | BP167: 0 | BQ167: 0 | BR167: 0 | BS167: 0 | BT167: 0 | BU167: 0 | BV167: =BV150*(1-Tax_Rate) -> 0 | BW167: 0 | BX167: 0
A168: =ROW() -> 168 | B168: Insurance | J168: 0.03424605958 | K168: 0.03510221107 | L168: 0.03597976635 | M168: 0.0368792605 | N168: 0.03780124202 | O168: 0.03874627307 | P168: 0.03971492989 | Q168: 0.04070780314 | R168: 0.04172549822 | S168: 0.04276863568 | T168: 0.04383785157 | U168: 0.04493379786 | V168: 0.0460571428 | W168: 0.04720857137 | X168: 0.04838878566 | Y168: 0.0495985053 | Z168: 0.05083846793 | AA168: 0.05210942963 | AB168: 0.05341216537 | AC168: 0.05474746951 | AD168: 0.05611615624 | AE168: 0.05751906015 | AF168: 0.05895703665 | AG168: 0.06043096257 | AH168: 0.06194173663 | AI168: 0.06349028005 | AJ168: 0.06507753705 | AK168: 0.06670447548 | AL168: 0.06837208736 | AM168: 0.07008138955 | AN168: 0.07183342429 | AO168: 0.07362925989 | AP168: 0.07546999139 | AQ168: 0.07735674118 | AR168: 0.0792906597 | AS168: 0.0812729262 | AT168: 0.08330474935 | AU168: 0.08538736809 | AV168: 0.08752205229 | AW168: 0.0897101036 | AX168: 0.09195285619 | AY168: 0.09425167759 | AZ168: 0.09660796953 | BA168: 0.09902316877 | BB168: 0.101498748 | BC168: 0.1040362167 | BD168: 0.1066371221 | BE168: 0.1093030502 | BF168: 0.1120356264 | BG168: 0.1148365171 | BH168: 0.11770743 | BI168: 0 | BJ168: 0 | BK168: 0 | BL168: 0 | BM168: 0 | BN168: 0 | BO168: 0 | BP168: 0 | BQ168: 0 | BR168: 0 | BS168: 0 | BT168: 0 | BU168: 0 | BV168: 0 | BW168: 0 | BX168: 0
A169: =ROW() -> 169 | B169: Total Service Period Cost Cash Flows (AT) | J169: =SUM(J157:J168) -> -1.06840905 | K169: =SUM(K157:K168) -> -0.9676383806 | L169: -0.8540071257 | M169: -0.740353932 | N169: -0.6395174321 | O169: -0.5514970637 | P169: -0.4634530696 | Q169: -0.4267415835 | R169: -0.4413620001 | S169: -0.4559569744 | T169: -0.4705258702 | U169: -0.4850680356 | V169: -0.4995828023 | W169: -0.5140694855 | X169: -0.5285273829 | Y169: -0.5429557749 | Z169: -0.557353924 | AA169: -0.571721074 | AB169: -0.5860564499 | AC169: -0.4591282651 | AD169: 0.5408976188 | AE169: 0.526662411 | AF169: 0.5124622758 | AG169: 0.49829809 | AH169: 0.4841707524 | AI169: 0.4700811841 | AJ169: 0.4560303294 | AK169: 0.4420191562 | AL169: 0.4280486564 | AM169: 0.4141198468 | AN169: 0.4002337699 | AO169: 0.3863914938 | AP169: 0.3725941136 | AQ169: 0.3588427517 | AR169: 0.3451385585 | AS169: 0.3314827133 | AT169: 0.3178764248 | AU169: 0.3043209318 | AV169: 0.2908175043 | AW169: 0.2773674439 | AX169: 0.2639720848 | AY169: 0.2506327945 | AZ169: 0.2373509748 | BA169: 0.2241280623 | BB169: 0.2109655299 | BC169: 0.1978648869 | BD169: 0.1848276806 | BE169: 0.1718554969 | BF169: 0.1589499615 | BG169: 0.1461127405 | BH169: 15.74586416 | BI169: 0 | BJ169: 0 | BK169: 0 | BL169: 0 | BM169: 0 | BN169: 0 | BO169: 0 | BP169: 0 | BQ169: 0 | BR169: 0 | BS169: 0 | BT169: 0 | BU169: 0 | BV169: 0 | BW169: =SUM(BW157:BW168) -> 0 | BX169: =SUM(BX157:BX168) -> 0
A170: =ROW() -> 170 | B170: PV Service Period Cost Cash Flows (AT) | G170: =NPV(disc_rate,J169:BX169) -> -5.020571351
A171: =ROW() -> 171
A172: =ROW() -> 172 | B172: COMBINED RESULTS | J172: 1 | K172: 2 | L172: 3 | M172: 4 | N172: 5 | O172: 6 | P172: 7 | Q172: 8 | R172: 9 | S172: 10 | T172: 11 | U172: 12 | V172: 13 | W172: 14 | X172: 15 | Y172: 16 | Z172: 17 | AA172: 18 | AB172: 19 | AC172: 20 | AD172: 21 | AE172: 22 | AF172: 23 | AG172: 24 | AH172: 25 | AI172: 26 | AJ172: 27 | AK172: 28 | AL172: 29 | AM172: 30 | AN172: 31 | AO172: 32 | AP172: 33 | AQ172: 34 | AR172: 35 | AS172: 36 | AT172: 37 | AU172: 38 | AV172: 39 | AW172: 40 | AX172: 41 | AY172: 42 | AZ172: 43 | BA172: 44 | BB172: 45 | BC172: 46 | BD172: 47 | BE172: 48 | BF172: 49 | BG172: 50 | BH172: 51 | BI172: 52 | BJ172: 53 | BK172: 54 | BL172: 55 | BM172: 56 | BN172: 57 | BO172: 58 | BP172: 59 | BQ172: 60 | BR172: 61 | BS172: 62 | BT172: 63 | BU172: 64 | BV172: 65 | BW172: 66 | BX172: 67
A173: =ROW() -> 173 | J173: =J144 -> 2025 | K173: =K144 -> 2026 | L173: 2027 | M173: 2028 | N173: 2029 | O173: 2030 | P173: 2031 | Q173: 2032 | R173: 2033 | S173: 2034 | T173: 2035 | U173: 2036 | V173: 2037 | W173: 2038 | X173: 2039 | Y173: 2040 | Z173: 2041 | AA173: 2042 | AB173: 2043 | AC173: 2044 | AD173: 2045 | AE173: 2046 | AF173: 2047 | AG173: 2048 | AH173: 2049 | AI173: 2050 | AJ173: 2051 | AK173: 2052 | AL173: 2053 | AM173: 2054 | AN173: 2055 | AO173: 2056 | AP173: 2057 | AQ173: 2058 | AR173: 2059 | AS173: 2060 | AT173: 2061 | AU173: 2062 | AV173: 2063 | AW173: 2064 | AX173: 2065 | AY173: 2066 | AZ173: 2067 | BA173: 2068 | BB173: 2069 | BC173: 2070 | BD173: 2071 | BE173: 2072 | BF173: 2073 | BG173: 2074 | BH173: 2075 | BI173: 2076 | BJ173: 2077 | BK173: 2078 | BL173: 2079 | BM173: 2080 | BN173: 2081 | BO173: 2082 | BP173: 2083 | BQ173: 2084 | BR173: 2085 | BS173: 2086 | BT173: 2087 | BU173: 2088 | BV173: 2089 | BW173: =BW144 -> 2090 | BX173: =BX144 -> 2091
A174: =ROW() -> 174 | B174: PV Construction + Service Period Cost CF (AT) | G174: =G141+G170 -> 99.34608406
A175: =ROW() -> 175 | B175: PV Grossed up to Revenue Requirement | G175: =G174/(1-Tax_Rate) -> 132.3195779
A176: =ROW() -> 176 | B176: Equivalent Uniform Annual Revenue Requirement | G176: =-PMT(disc_rate,$G$21,G175) -> 9.924937073
A177: =ROW() -> 177
A178: =ROW() -> 178 | B178: Cash Flow Check:
A179: =ROW() -> 179 | B179: Service Period Cash Flow (AT) | J179: =IF(J144<=$J$144+$G$21-1,$G$176*(1-Tax_Rate)-J169,-J169) -> 8.52009268 | K179: 8.41932201 | L179: 8.305690755 | M179: 8.192037561 | N179: 8.091201061 | O179: 8.003180693 | P179: 7.915136699 | Q179: 7.878425213 | R179: 7.893045629 | S179: 7.907640604 | T179: 7.922209499 | U179: 7.936751665 | V179: 7.951266432 | W179: 7.965753115 | X179: 7.980211012 | Y179: 7.994639404 | Z179: 8.009037553 | AA179: 8.023404703 | AB179: 8.037740079 | AC179: 7.910811894 | AD179: 6.91078601 | AE179: 6.925021218 | AF179: 6.939221353 | AG179: 6.953385539 | AH179: 6.967512877 | AI179: 6.981602445 | AJ179: 6.9956533 | AK179: 7.009664473 | AL179: 7.023634973 | AM179: 7.037563782 | AN179: 7.051449859 | AO179: 7.065292135 | AP179: 7.079089516 | AQ179: 7.092840878 | AR179: 7.106545071 | AS179: 7.120200916 | AT179: 7.133807204 | AU179: 7.147362697 | AV179: 7.160866125 | AW179: 7.174316185 | AX179: 7.187711544 | AY179: 7.201050835 | AZ179: 7.214332654 | BA179: 7.227555567 | BB179: 7.240718099 | BC179: 7.253818742 | BD179: 7.266855949 | BE179: 7.279828132 | BF179: 7.292733668 | BG179: 7.305570889 | BH179: -8.294180526 | BI179: 0 | BJ179: 0 | BK179: 0 | BL179: 0 | BM179: 0 | BN179: 0 | BO179: 0 | BP179: 0 | BQ179: 0 | BR179: 0 | BS179: 0 | BT179: 0 | BU179: 0 | BV179: =IF(BV144<=$J$144+$G$21-1,$G$176*(1-Tax_Rate)-BV169,-BV169) -> 0 | BW179: =IF(BW144<=$J$144+$G$21-1,$G$176*(1-Tax_Rate)-BW169,-BW169) -> 0 | BX179: =IF(BX144<=$J$144+$G$21-1,$G$176*(1-Tax_Rate)-BX169,-BX169) -> 0
A180: =ROW() -> 180 | B180: PV Service Period Cash Flow (AT) | G180: =NPV(disc_rate,J179:BX179) -> 104.3666554
A181: =ROW() -> 181 | B181: PV Construction Period Cash Flow (AT) | G181: =-G141 -> -104.3666554
A182: =ROW() -> 182 | B182: NPV TEST (should equal zero) | G182: =SUM(G180:G181) -> 0
A183: =ROW() -> 183
A184: =ROW() -> 184
A185: =ROW() -> 185
A186: =ROW() -> 186
A187: =ROW() -> 187 | J187: SERVICE PERIOD
A188: =ROW() -> 188 | J188: =J143 -> 1 | K188: =K143 -> 2 | L188: 3 | M188: 4 | N188: 5 | O188: 6 | P188: 7 | Q188: 8 | R188: 9 | S188: 10 | T188: 11 | U188: 12 | V188: 13 | W188: 14 | X188: 15 | Y188: 16 | Z188: 17 | AA188: 18 | AB188: 19 | AC188: 20 | AD188: 21 | AE188: 22 | AF188: 23 | AG188: 24 | AH188: 25 | AI188: 26 | AJ188: 27 | AK188: 28 | AL188: 29 | AM188: 30 | AN188: 31 | AO188: 32 | AP188: 33 | AQ188: 34 | AR188: 35 | AS188: 36 | AT188: 37 | AU188: 38 | AV188: 39 | AW188: 40 | AX188: 41 | AY188: 42 | AZ188: 43 | BA188: 44 | BB188: 45 | BC188: 46 | BD188: 47 | BE188: 48 | BF188: 49 | BG188: 50 | BH188: 51 | BI188: 52 | BJ188: 53 | BK188: 54 | BL188: 55 | BM188: 56 | BN188: 57 | BO188: 58 | BP188: 59 | BQ188: 60 | BR188: 61 | BS188: 62 | BT188: 63 | BU188: 64 | BV188: 65 | BW188: =BW143 -> 66 | BX188: =BX143 -> 67
A189: =ROW() -> 189 | B189: Property Tax Basis by Region: | J189: =J144 -> 2025 | K189: 2026 | L189: 2027 | M189: 2028 | N189: 2029 | O189: 2030 | P189: 2031 | Q189: 2032 | R189: 2033 | S189: 2034 | T189: 2035 | U189: 2036 | V189: 2037 | W189: 2038 | X189: 2039 | Y189: 2040 | Z189: 2041 | AA189: 2042 | AB189: 2043 | AC189: 2044 | AD189: 2045 | AE189: 2046 | AF189: 2047 | AG189: 2048 | AH189: 2049 | AI189: 2050 | AJ189: 2051 | AK189: 2052 | AL189: 2053 | AM189: 2054 | AN189: 2055 | AO189: 2056 | AP189: 2057 | AQ189: 2058 | AR189: 2059 | AS189: 2060 | AT189: 2061 | AU189: 2062 | AV189: 2063 | AW189: 2064 | AX189: 2065 | AY189: 2066 | AZ189: 2067 | BA189: 2068 | BB189: 2069 | BC189: 2070 | BD189: 2071 | BE189: 2072 | BF189: 2073 | BG189: 2074 | BH189: 2075 | BI189: 2076 | BJ189: 2077 | BK189: 2078 | BL189: 2079 | BM189: 2080 | BN189: 2081 | BO189: 2082 | BP189: 2083 | BQ189: 2084 | BR189: 2085 | BS189: 2086 | BT189: 2087 | BU189: 2088 | BV189: 2089 | BW189: =BW144 -> 2090 | BX189: =BX144 -> 2091
A190: =ROW() -> 190
A191: =ROW() -> 191
A192: =ROW() -> 192 | B192: DEK (net plant) | J192: =J207 -> 103.971983 | K192: =K207 -> 101.9333167 | L192: 99.89465038 | M192: 97.85598404 | N192: 95.81731771 | O192: 93.77865138 | P192: 91.73998504 | Q192: 89.70131871 | R192: 87.66265237 | S192: 85.62398604 | T192: 83.5853197 | U192: 81.54665337 | V192: 79.50798704 | W192: 77.4693207 | X192: 75.43065437 | Y192: 73.39198803 | Z192: 71.3533217 | AA192: 69.31465536 | AB192: 67.27598903 | AC192: 65.2373227 | AD192: 63.19865636 | AE192: 61.15999003 | AF192: 59.12132369 | AG192: 57.08265736 | AH192: 55.04399102 | AI192: 53.00532469 | AJ192: 50.96665836 | AK192: 48.92799202 | AL192: 46.88932569 | AM192: 44.85065935 | AN192: 42.81199302 | AO192: 40.77332669 | AP192: 38.73466035 | AQ192: 36.69599402 | AR192: 34.65732768 | AS192: 32.61866135 | AT192: 30.57999501 | AU192: 28.54132868 | AV192: 26.50266235 | AW192: 24.46399601 | AX192: 22.42532968 | AY192: 20.38666334 | AZ192: 18.34799701 | BA192: 16.30933067 | BB192: 14.27066434 | BC192: 12.23199801 | BD192: 10.19333167 | BE192: 8.154665337 | BF192: 6.115999003 | BG192: 4.077332669 | BH192: 2.038666334 | BI192: 0 | BJ192: 0 | BK192: 0 | BL192: 0 | BM192: 0 | BN192: 0 | BO192: 0 | BP192: 0 | BQ192: 0 | BR192: 0 | BS192: 0 | BT192: 0 | BU192: 0 | BV192: 0 | BW192: =BW207 -> 0 | BX192: =BX207 -> 0
A193: =ROW() -> 193
A194: =ROW() -> 194
A195: =ROW() -> 195
A196: =ROW() -> 196
A197: =ROW() -> 197
A198: =ROW() -> 198
A199: =ROW() -> 199
A200: =ROW() -> 200
A201: =ROW() -> 201
A202: =ROW() -> 202
A203: =ROW() -> 203
A204: =ROW() -> 204 | B204: For DEK: Property Tax Basis
A205: =ROW() -> 205 | B205: Book Depreciation | J205: =IF(J143<=$G21,$G125/$G21,0) -> 2.038666334 | K205: =IF(K143<=$G21,$G125/$G21,0) -> 2.038666334 | L205: 2.038666334 | M205: 2.038666334 | N205: 2.038666334 | O205: 2.038666334 | P205: 2.038666334 | Q205: 2.038666334 | R205: 2.038666334 | S205: 2.038666334 | T205: 2.038666334 | U205: 2.038666334 | V205: 2.038666334 | W205: 2.038666334 | X205: 2.038666334 | Y205: 2.038666334 | Z205: 2.038666334 | AA205: 2.038666334 | AB205: 2.038666334 | AC205: 2.038666334 | AD205: 2.038666334 | AE205: 2.038666334 | AF205: 2.038666334 | AG205: 2.038666334 | AH205: 2.038666334 | AI205: 2.038666334 | AJ205: 2.038666334 | AK205: 2.038666334 | AL205: 2.038666334 | AM205: 2.038666334 | AN205: 2.038666334 | AO205: 2.038666334 | AP205: 2.038666334 | AQ205: 2.038666334 | AR205: 2.038666334 | AS205: 2.038666334 | AT205: 2.038666334 | AU205: 2.038666334 | AV205: 2.038666334 | AW205: 2.038666334 | AX205: 2.038666334 | AY205: 2.038666334 | AZ205: 2.038666334 | BA205: 2.038666334 | BB205: 2.038666334 | BC205: 2.038666334 | BD205: 2.038666334 | BE205: 2.038666334 | BF205: 2.038666334 | BG205: 2.038666334 | BH205: 2.038666334 | BI205: 0 | BJ205: 0 | BK205: 0 | BL205: 0 | BM205: 0 | BN205: 0 | BO205: 0 | BP205: 0 | BQ205: 0 | BR205: 0 | BS205: 0 | BT205: 0 | BU205: 0 | BV205: 0 | BW205: =IF(BW143<=$G21,$G125/$G21,0) -> 0 | BX205: =IF(BX143<=$G21,$G125/$G21,0) -> 0
A206: =ROW() -> 206 | B206: Accumulated Book Depreciation | J206: =I206+I205 -> 0 | K206: =J206+J205 -> 2.038666334 | L206: 4.077332669 | M206: 6.115999003 | N206: 8.154665337 | O206: 10.19333167 | P206: 12.23199801 | Q206: 14.27066434 | R206: 16.30933067 | S206: 18.34799701 | T206: 20.38666334 | U206: 22.42532968 | V206: 24.46399601 | W206: 26.50266235 | X206: 28.54132868 | Y206: 30.57999501 | Z206: 32.61866135 | AA206: 34.65732768 | AB206: 36.69599402 | AC206: 38.73466035 | AD206: 40.77332669 | AE206: 42.81199302 | AF206: 44.85065935 | AG206: 46.88932569 | AH206: 48.92799202 | AI206: 50.96665836 | AJ206: 53.00532469 | AK206: 55.04399102 | AL206: 57.08265736 | AM206: 59.12132369 | AN206: 61.15999003 | AO206: 63.19865636 | AP206: 65.2373227 | AQ206: 67.27598903 | AR206: 69.31465536 | AS206: 71.3533217 | AT206: 73.39198803 | AU206: 75.43065437 | AV206: 77.4693207 | AW206: 79.50798704 | AX206: 81.54665337 | AY206: 83.5853197 | AZ206: 85.62398604 | BA206: 87.66265237 | BB206: 89.70131871 | BC206: 91.73998504 | BD206: 93.77865138 | BE206: 95.81731771 | BF206: 97.85598404 | BG206: 99.89465038 | BH206: 101.9333167 | BI206: 103.971983 | BJ206: 103.971983 | BK206: 103.971983 | BL206: 103.971983 | BM206: 103.971983 | BN206: 103.971983 | BO206: 103.971983 | BP206: 103.971983 | BQ206: 103.971983 | BR206: 103.971983 | BS206: 103.971983 | BT206: 103.971983 | BU206: 103.971983 | BV206: 103.971983 | BW206: =BV206+BV205 -> 103.971983 | BX206: =BW206+BW205 -> 103.971983
A207: =ROW() -> 207 | B207: Net Plant | J207: =G125-J206 -> 103.971983 | K207: =G125-K206 -> 101.9333167 | L207: =G125-L206 -> 99.89465038 | M207: =G125-M206 -> 97.85598404 | N207: =G125-N206 -> 95.81731771 | O207: =G125-O206 -> 93.77865138 | P207: =G125-P206 -> 91.73998504 | Q207: =G125-Q206 -> 89.70131871 | R207: =G125-R206 -> 87.66265237 | S207: =G125-S206 -> 85.62398604 | T207: =G125-T206 -> 83.5853197 | U207: =G125-U206 -> 81.54665337 | V207: =G125-V206 -> 79.50798704 | W207: =G125-W206 -> 77.4693207 | X207: =G125-X206 -> 75.43065437 | Y207: =G125-Y206 -> 73.39198803 | Z207: =G125-Z206 -> 71.3533217 | AA207: =G125-AA206 -> 69.31465536 | AB207: =G125-AB206 -> 67.27598903 | AC207: =G125-AC206 -> 65.2373227 | AD207: =G125-AD206 -> 63.19865636 | AE207: =G125-AE206 -> 61.15999003 | AF207: =G125-AF206 -> 59.12132369 | AG207: =G125-AG206 -> 57.08265736 | AH207: =G125-AH206 -> 55.04399102 | AI207: =G125-AI206 -> 53.00532469 | AJ207: =G125-AJ206 -> 50.96665836 | AK207: =G125-AK206 -> 48.92799202 | AL207: =G125-AL206 -> 46.88932569 | AM207: =G125-AM206 -> 44.85065935 | AN207: =G125-AN206 -> 42.81199302 | AO207: =G125-AO206 -> 40.77332669 | AP207: =G125-AP206 -> 38.73466035 | AQ207: =G125-AQ206 -> 36.69599402 | AR207: =G125-AR206 -> 34.65732768 | AS207: =G125-AS206 -> 32.61866135 | AT207: =G125-AT206 -> 30.57999501 | AU207: =G125-AU206 -> 28.54132868 | AV207: =G125-AV206 -> 26.50266235 | AW207: =G125-AW206 -> 24.46399601 | AX207: =G125-AX206 -> 22.42532968 | AY207: =G125-AY206 -> 20.38666334 | AZ207: =G125-AZ206 -> 18.34799701 | BA207: =G125-BA206 -> 16.30933067 | BB207: =G125-BB206 -> 14.27066434 | BC207: =G125-BC206 -> 12.23199801 | BD207: =G125-BD206 -> 10.19333167 | BE207: =G125-BE206 -> 8.154665337 | BF207: =G125-BF206 -> 6.115999003 | BG207: =G125-BG206 -> 4.077332669 | BH207: =G125-BH206 -> 2.038666334 | BI207: =G125-BI206 -> 0 | BJ207: =G125-BJ206 -> 0 | BK207: =G125-BK206 -> 0 | BL207: =G125-BL206 -> 0 | BM207: =G125-BM206 -> 0 | BN207: =G125-BN206 -> 0 | BO207: =G125-BO206 -> 0 | BP207: =G125-BP206 -> 0 | BQ207: =G125-BQ206 -> 0 | BR207: =G125-BR206 -> 0 | BS207: =G125-BS206 -> 0 | BT207: =G125-BT206 -> 0 | BU207: =G125-BU206 -> 0 | BV207: =G125-BV206 -> 0 | BW207: =G125-BW206 -> 0 | BX207: =G125-BX206 -> 0
A208: =ROW() -> 208
A209: =ROW() -> 209
A210: =ROW() -> 210
A211: =ROW() -> 211
A212: =ROW() -> 212
A213: =ROW() -> 213
A214: =ROW() -> 214
... 14 more rows
